Workbook

Sheet 호실순
A1: 생활관 정리정돈/청소 상태 평가 현황(14-2학기 호실순)
A2: NO | B2: 호 실 | C2: 9월 | F2: 10월 | J2: 11월 | N2: 총점 | O2: 시상내역
C3: 3주 | D3: 4주 | E3: 5주 | F3: 1주 | G3: 2주 | H3: 3주 | I3: 4주 | J3: 1주 | K3: 2주 | L3: 3주 | M3: 4주
A4: 1 | B4: 1111 | C4: 81.4 | D4: 65 | E4: 81.4 | F4: 78.2 | I4: 77.4 | J4: 67.2 | K4: 56.4 | L4: 79.4 | M4: 71.2 | N4: =SUM(C4:M4) -> 657.6
A5: 2 | B5: 1115 | C5: 96.8 | D5: 98.4 | E5: 98.4 | F5: 98.4 | I5: 98.4 | J5: 98.4 | K5: 97 | L5: 98.4 | M5: 98.4 | N5: 882.6 | O5: 남제 장려상
A6: 3 | B6: 1124 | C6: 92.8 | D6: 93.6 | E6: 86 | F6: 75 | I6: 63.4 | J6: 83 | K6: 76.6 | L6: 86.2 | M6: 78.4 | N6: 735
A7: 4 | B7: 1125 | C7: 84.6 | D7: 66.4 | E7: 66.6 | F7: 76.2 | I7: 71.4 | J7: 71.6 | K7: 35.4 | L7: 76.4 | M7: 66.6 | N7: 615.2
A8: 5 | B8: 1128 | C8: 53.2 | D8: 38 | E8: 63.2 | F8: 64 | I8: 54 | J8: 69.8 | K8: 39.6 | L8: 61.4 | M8: 52.8 | N8: 496 | O8: 탈락
A9: 6 | B9: 1132 | C9: 87 | D9: 94.8 | E9: 96.8 | F9: 84.4 | I9: 84 | J9: 67.8 | K9: 64.6 | L9: 82 | M9: 70 | N9: 731.4
A10: 7 | B10: 1134 | C10: 44.2 | D10: 68 | E10: 73.2 | F10: 65 | I10: 39.2 | J10: 71.2 | K10: 38.4 | L10: 65.6 | M10: 58.2 | N10: 523 | O10: 탈락
A11: 8 | B11: 1137 | C11: 92.8 | D11: 86.2 | E11: 87 | F11: 87.8 | I11: 73.4 | J11: 88.4 | K11: 58 | L11: 84.6 | M11: 77.8 | N11: 736
A12: 9 | B12: 1141 | C12: 94.4 | D12: 38.4 | E12: 58 | F12: 37 | I12: 68.2 | J12: 54.2 | K12: 50 | L12: 72.4 | M12: 73.8 | N12: 546.4 | O12: 탈락
A13: 10 | B13: 1142 | C13: 64.4 | D13: 61.4 | E13: 82 | F13: 74.2 | I13: 71.6 | J13: 84.8 | K13: 58.2 | L13: 76.8 | M13: 71.2 | N13: 644.6
A14: 11 | B14: 1144 | C14: 93.4 | D14: 95.4 | E14: 96.8 | F14: 95 | I14: 95.2 | J14: 96.4 | K14: 54.8 | L14: 83.6 | M14: 87.6 | N14: 798.2
A15: 12 | B15: 1201 | C15: 94.8 | D15: 73.2 | E15: 66.6 | F15: 94.8 | I15: 81.4 | J15: 63.8 | K15: 64 | L15: 76.4 | M15: 88.6 | N15: 703.6
A16: 13 | B16: 1206 | C16: 98.4 | D16: 98.4 | E16: 98.4 | F16: 98 | I16: 98.4 | J16: 98 | K16: 98 | L16: 98.4 | M16: 98 | N16: 884 | O16: 남제 장려상
A17: 14 | B17: 1207 | C17: 98 | D17: 98.4 | E17: 98.4 | F17: 98 | I17: 98.4 | J17: 98 | K17: 98.4 | L17: 98 | M17: 98.4 | N17: 884 | O17: 남제 우수상
A18: 15 | B18: 1208 | C18: 76.4 | D18: 84.4 | E18: 75.8 | F18: 63 | I18: 75.8 | J18: 60.6 | K18: 73.4 | L18: 67.6 | M18: 61 | N18: 638
A19: 16 | B19: 1209 | C19: 92.2 | D19: 88.4 | E19: 91.6 | F19: 83 | I19: 91.2 | J19: 74.2 | K19: 84 | L19: 71.2 | M19: 85 | N19: 760.8
A20: 17 | B20: 1213 | C20: 79.8 | D20: 78.6 | E20: 61.2 | F20: 33.8 | I20: 92.8 | J20: 85.4 | K20: 82.4 | L20: 87 | M20: 84.6 | N20: 685.6
A21: 18 | B21: 1220 | C21: 73.4 | D21: 56.4 | E21: 68.4 | F21: 64 | I21: 73 | J21: 49.2 | K21: 68.2 | L21: 69.2 | M21: 46.2 | N21: 568
A22: 19 | B22: 1223 | C22: 98.4 | D22: 98.4 | E22: 96.4 | F22: 96.4 | I22: 98 | J22: 95.2 | K22: 96.4 | L22: 98 | M22: 98 | N22: 875.2
A23: 20 | B23: 1225 | C23: 94.8 | D23: 82.6 | E23: 94.8 | F23: 95.2 | I23: 89.6 | J23: 68.4 | K23: 88.2 | L23: 60.4 | M23: 78 | N23: 752
A24: 21 | B24: 1229 | C24: 96.8 | D24: 91.2 | E24: 81.2 | F24: 83.4 | I24: 94.8 | J24: 69.6 | K24: 89.2 | L24: 64.4 | M24: 86 | N24: 756.6
A25: 22 | B25: 1231 | C25: 98 | D25: 64.6 | E25: 86.4 | F25: 76.8 | I25: 60.6 | J25: 56.4 | K25: 45.2 | L25: 55.6 | M25: 71.8 | N25: 615.4
A26: 23 | B26: 1232 | C26: 68.2 | D26: 84.6 | E26: 86.8 | F26: 67.2 | I26: 88 | J26: 64.4 | K26: 70.4 | L26: 63 | M26: 76.8 | N26: 669.4
A27: 24 | B27: 1235 | C27: 86.4 | D27: 76.6 | E27: 91.6 | F27: 53.6 | I27: 91.8 | J27: 70.6 | K27: 81.2 | L27: 61.8 | M27: 85 | N27: 698.6
A28: 25 | B28: 1242 | C28: 76.4 | D28: 54.2 | E28: 92 | F28: 51.6 | I28: 72.8 | J28: 75.6 | K28: 58.2 | L28: 57.8 | M28: 75 | N28: 613.6
A29: 26 | B29: 1243 | C29: 83.8 | D29: 76.2 | E29: 90.4 | F29: 81.8 | I29: 91.2 | J29: 69.8 | K29: 49.2 | L29: 61 | M29: 84.4 | N29: 687.8
A30: 27 | B30: 1301 | C30: 81.2 | D30: 73.8 | E30: 96.8 | F30: 72.2 | I30: 89.6 | J30: 77.8 | K30: 72.4 | L30: 59.4 | M30: 67.8 | N30: 691
A31: 28 | B31: 1306 | C31: 93.2 | D31: 71.8 | E31: 96.4 | F31: 65.6 | I31: 87.6 | J31: 64.6 | K31: 56.8 | L31: 68.8 | M31: 93.2 | N31: 698
A32: 29 | B32: 1307 | C32: 96.4 | D32: 98.4 | E32: 60.2 | F32: 84.6 | I32: 96.8 | J32: 48 | K32: 83.8 | L32: 91.2 | M32: 65.6 | N32: 725
A33: 30 | B33: 1310 | C33: 86 | D33: 68 | E33: 60.8 | F33: 71.6 | I33: 50.6 | J33: 70.2 | K33: 55.8 | L33: 62.8 | M33: 64.2 | N33: 590
A34: 31 | B34: 1315 | C34: 72.6 | D34: 79.8 | E34: 69.8 | F34: 63.4 | I34: 50.4 | J34: 75.8 | K34: 49.2 | L34: 59.2 | M34: 58.8 | N34: 579
A35: 32 | B35: 1319 | C35: 98.4 | D35: 98.4 | E35: 98.4 | F35: 98 | I35: 99.4 | J35: 98.4 | K35: 98.4 | L35: 98.4 | M35: 98.4 | N35: 886.2 | O35: 남자 대상
A36: 33 | B36: 1321 | C36: 96.8 | D36: 96.8 | E36: 85 | F36: 78.4 | I36: 86.4 | J36: 82.6 | K36: 65.6 | L36: 71 | M36: 74.4 | N36: 737
A37: 34 | B37: 1322 | C37: 78.2 | D37: 86 | E37: 71.6 | F37: 66.6 | I37: 62.6 | J37: 77 | K37: 60 | L37: 46.4 | M37: 68.2 | N37: 616.6
A38: 35 | B38: 1329 | C38: 65.6 | D38: 55.4 | E38: 44.6 | F38: 62.6 | I38: 77.8 | J38: 67.2 | K38: 48.2 | L38: 58 | M38: 65 | N38: 544.4
A39: 36 | B39: 1330 | C39: 86.6 | D39: 96.8 | E39: 65.6 | F39: 96.8 | I39: 81 | J39: 95.4 | K39: 82 | L39: 78 | M39: 74.4 | N39: 756.6
A40: 37 | B40: 1338 | C40: 84.2 | D40: 85.6 | E40: 75.8 | F40: 71.6 | I40: 78.4 | J40: 71.8 | K40: 83 | L40: 76.8 | M40: 76.8 | N40: 704
A41: 38 | B41: 1342 | C41: 81.4 | D41: 77.2 | E41: 72.2 | F41: 68 | I41: 78.4 | J41: 69.8 | K41: 62.4 | L41: 63 | M41: 63 | N41: 635.4
A42: 39 | B42: 1344 | C42: 96.8 | D42: 96.8 | E42: 91.6 | F42: 96.8 | I42: 93.8 | J42: 96.4 | K42: 75.2 | L42: 91.6 | M42: 96.8 | N42: 835.8
A43: 40 | B43: 1508 | C43: 98.4 | D43: 96 | E43: 82.4 | F43: 94.4 | I43: 94.4 | J43: 96.4 | K43: 95 | L43: 87.6 | M43: 78.6 | N43: 823.2
A44: 41 | B44: 1511 | C44: 96.8 | D44: 94.8 | E44: 89.6 | F44: 98 | I44: 95.2 | J44: 96.4 | K44: 64.6 | L44: 87 | M44: 82.4 | N44: 804.8
A45: 42 | B45: 1519 | C45: 79.2 | D45: 90 | E45: 67 | F45: 94.8 | I45: 62.8 | J45: 96.8 | K45: 66 | L45: 89.6 | M45: 85 | N45: 731.2
A46: 43 | B46: 1520 | C46: 79.6 | D46: 68.6 | E46: 56.4 | F46: 81.2 | I46: 75.4 | J46: 59 | K46: 58.8 | L46: 49.2 | M46: 54.4 | N46: 582.6
A47: 44 | B47: 1523 | C47: 64.8 | D47: 73 | E47: 72.4 | F47: 71.6 | I47: 62.8 | J47: 52.8 | K47: 56 | L47: 48 | M47: 60.6 | N47: 562
A48: 45 | B48: 1524 | C48: 73.2 | D48: 75.4 | E48: 71.4 | F48: 81.4 | I48: 82.2 | J48: 55.8 | K48: 49.4 | L48: 58.8 | M48: 78.2 | N48: 625.8
A49: 46 | B49: 1525 | C49: 73 | D49: 96.8 | E49: 98 | F49: 91.4 | I49: 86.4 | J49: 59.4 | K49: 92.4 | L49: 98.4 | M49: 96.8 | N49: 792.6
A50: 47 | B50: 1529 | C50: 97 | D50: 98.4 | E50: 94.8 | F50: 98 | I50: 98 | J50: 96.4 | K50: 95 | L50: 98.4 | M50: 98 | N50: 874
A51: 48 | B51: 1530 | C51: 98.4 | D51: 96.8 | E51: 98 | F51: 96.4 | I51: 98 | J51: 98 | K51: 98.4 | L51: 98.4 | M51: 96.8 | N51: 879.2
A52: 49 | B52: 1533 | C52: 98 | D52: 98 | E52: 98 | F52: 96.4 | I52: 98 | J52: 94.4 | K52: 96.8 | L52: 51.2 | M52: 98.4 | N52: 829.2
A53: 50 | B53: 1536 | C53: 96.8 | D53: 73.4 | E53: 78.2 | F53: 70.6 | I53: 73.8 | J53: 57.4 | K53: 66.4 | L53: 61 | M53: 85 | N53: 662.6
A54: 51 | B54: 1538 | C54: 98.4 | D54: 98.4 | E54: 68.6 | F54: 93.2 | I54: 96 | J54: 52.8 | K54: 98 | L54: 67.8 | M54: 73 | N54: 746.2
A55: 52 | B55: 1539 | C55: 98.4 | D55: 98.4 | E55: 96.8 | F55: 98.4 | I55: 94.8 | J55: 96.8 | K55: 99.4 | L55: 96.8 | M55: 98 | N55: 877.8
A56: 53 | B56: 1540 | C56: 62.4 | D56: 94.8 | E56: 78.2 | F56: 65.6 | I56: 84.8 | J56: 69 | K56: 33.8 | L56: 54.8 | M56: 79 | N56: 622.4
A57: 54 | B57: 1542 | C57: 99.4 | D57: 98.4 | E57: 98 | F57: 98 | I57: 96.4 | J57: 59 | K57: 96.8 | L57: 96.4 | M57: 94.8 | N57: 837.2
A58: 55 | B58: 1544 | C58: 98.4 | D58: 98.4 | E58: 96.8 | F58: 96.4 | I58: 96 | J58: 96.4 | K58: 98 | L58: 98.4 | M58: 96.4 | N58: 875.2
A59: 56 | B59: 2101 | C59: 52.2 | D59: 67.6 | E59: 66 | F59: 73.2 | I59: 56.8 | J59: 66.6 | K59: 60.8 | L59: 60.8 | M59: 54.8 | N59: 558.8
A60: 57 | B60: 2107 | C60: 43.6 | D60: 86.2 | E60: 73.8 | F60: 78.4 | I60: 79.4 | J60: 90.2 | K60: 56 | L60: 56 | M60: 75.6 | N60: 639.2
A61: 58 | B61: 2111 | C61: 34.4 | D61: 46.2 | E61: 46 | F61: 54.4 | I61: 41.2 | J61: 40 | K61: 39.4 | L61: 39.4 | M61: 28.2 | N61: 369.2 | O61: 탈락
A62: 59 | B62: 2114 | C62: 82 | D62: 98 | E62: 90.4 | F62: 95.4 | I62: 95.4 | J62: 99.4 | K62: 94 | L62: 94 | M62: 90.8 | N62: 839.4 | O62: 용지 우수상
A63: 60 | B63: 2124 | C63: 69.2 | D63: 91.6 | E63: 75.6 | F63: 86.6 | I63: 76.8 | J63: 68.8 | K63: 75.6 | L63: 75.6 | M63: 80.8 | N63: 700.6
A64: 61 | B64: 2125 | C64: 62.8 | D64: 44.6 | E64: 63.4 | F64: 86.2 | I64: 61.8 | J64: 69.2 | K64: 66.8 | L64: 66.8 | M64: 64.4 | N64: 586
A65: 62 | B65: 2217 | C65: 58.4 | D65: 91 | E65: 89.4 | F65: 95.4 | I65: 90.8 | J65: 87.8 | K65: 93.4 | L65: 93.4 | M65: 96.8 | N65: 796.4
A66: 63 | B66: 2218 | C66: 62.4 | D66: 88 | E66: 66.6 | F66: 71.2 | I66: 58 | J66: 73.4 | K66: 60 | L66: 60 | M66: 53.4 | N66: 593
A67: 64 | B67: 2220 | C67: 56.4 | D67: 90.8 | E67: 82.6 | F67: 83.2 | I67: 78.4 | J67: 87.8 | K67: 68.6 | L67: 68.6 | M67: 91.6 | N67: 708
A68: 65 | B68: 2227 | C68: 73.2 | D68: 70.6 | E68: 71.2 | F68: 68.6 | I68: 81 | J68: 61 | K68: 69.2 | L68: 69.2 | M68: 83.6 | N68: =SUM(C68:M68) -> 647.6
A69: 66 | B69: 2229 | C69: 81.6 | D69: 71.8 | E69: 87.8 | F69: 71.8 | I69: 78 | J69: 67.2 | K69: 78 | L69: 78 | M69: 77 | N69: 691.2
A70: 67 | B70: 2306 | C70: 38.6 | D70: 58 | E70: 47.6 | F70: 57.6 | I70: 54.4 | J70: 42.8 | K70: 40 | L70: 40 | M70: 24.8 | N70: 403.8 | O70: 탈락
A71: 68 | B71: 2311 | C71: 75.4 | D71: 70.8 | E71: 59 | F71: 67.2 | I71: 80 | J71: 46 | K71: 83.6 | L71: 83.6 | M71: 82 | N71: 647.6
A72: 69 | B72: 2317 | C72: 69.2 | D72: 46.2 | E72: 59.4 | F72: 48 | I72: 71.2 | J72: 44.8 | K72: 62.6 | L72: 62.6 | M72: 60 | N72: 524
A73: 70 | B73: 2503 | C73: 70.8 | D73: 57.6 | E73: 59 | F73: 48.8 | I73: 48.2 | J73: 61 | K73: 69.4 | L73: 69.4 | M73: 46.2 | N73: 530.4
A74: 71 | B74: 2506 | C74: 76.4 | D74: 67 | E74: 56 | F74: 61 | I74: 92.8 | J74: 92.2 | K74: 96.4 | L74: 96.4 | M74: 94.8 | N74: 733
A75: 72 | B75: 2508 | C75: 59.4 | D75: 52.8 | E75: 57.4 | F75: 44.6 | I75: 71.8 | J75: 63.6 | K75: 79.6 | L75: 79.6 | M75: 71.2 | N75: 580
A76: 73 | B76: 2509 | C76: 76.6 | D76: 68.6 | E76: 64.4 | F76: 56.8 | I76: 65.6 | J76: 60 | K76: 69.2 | L76: 69.2 | M76: 69.2 | N76: 599.6
A77: 74 | B77: 2513 | C77: 60 | D77: 64 | E77: 52.4 | F77: 55.8 | I77: 56 | J77: 52.8 | K77: 63.2 | L77: 63.2 | M77: 56 | N77: 523.4
A78: 75 | B78: 2514 | C78: 88.8 | D78: 98 | E78: 90.4 | F78: 91.8 | I78: 87.2 | J78: 95.4 | K78: 90.4 | L78: 90.4 | M78: 94 | N78: 826.4 | O78: 용지 장려상
A79: 76 | B79: 2516 | C79: 89.8 | D79: 98.4 | E79: 88.8 | F79: 95.4 | I79: 84.8 | J79: 97 | K79: 93.8 | L79: 93.8 | M79: 94 | N79: 835.8 | O79: 용지 장려상
A80: 77 | B80: 2519 | C80: 74.8 | D80: 58 | E80: 50.4 | F80: 50.2 | I80: 52.8 | J80: 67.2 | K80: 51.6 | L80: 51.6 | M80: 69.6 | N80: 526.2
A81: 78 | B81: 2522 | C81: 51 | D81: 57.4 | E81: 56 | F81: 75.8 | I81: 55.4 | J81: 52.4 | K81: 45.8 | L81: 45.8 | M81: 48 | N81: 487.6
A82: 79 | B82: 2523 | C82: 73 | D82: 69.2 | E82: 60 | F82: 69.6 | I82: 57.8 | J82: 75.2 | K82: 63.8 | L82: 63.8 | M82: 47.8 | N82: 580.2
A83: 80 | B83: 2525 | C83: 66.6 | D83: 65.8 | E83: 65 | F83: 71.2 | I83: 63.4 | J83: 60.4 | K83: 56.4 | L83: 56.4 | M83: 64 | N83: 569.2
A84: 81 | B84: 2526 | C84: 54.4 | D84: 54.8 | E84: 51.2 | F84: 49.2 | I84: 30.8 | J84: 47.8 | K84: 32.8 | L84: 32.8 | M84: 26.8 | N84: 380.6 | O84: 탈락
A85: 82 | B85: 2529 | C85: 74.8 | D85: 92.8 | E85: 76.6 | F85: 75.8 | I85: 46.6 | J85: 85.2 | K85: 68.8 | L85: 68.8 | M85: 71 | N85: 660.4
A86: 83 | B86: 5113 | C86: 68.4 | D86: 70.8 | E86: 69.8 | F86: 88 | I86: 67.2 | J86: 70.4 | K86: 76.8 | L86: 75.6 | M86: 72.4 | N86: 659.4
A87: 84 | B87: 5115 | C87: 94.4 | D87: 50.8 | E87: 80.4 | F87: 66.8 | I87: 86.6 | J87: 80 | K87: 61.4 | L87: 83.6 | M87: 72.4 | N87: 676.4
A88: 85 | B88: 5116 | C88: 69.2 | D88: 62.2 | E88: 58.8 | F88: 64.4 | I88: 58 | J88: 70.4 | K88: 83 | L88: 67.4 | M88: 66.4 | N88: 599.8
A89: 86 | B89: 5117 | C89: 72.8 | D89: 72.4 | E89: 57 | F89: 70.8 | I89: 72.4 | J89: 68.4 | K89: 64.8 | L89: 76.4 | M89: 76.8 | N89: 631.8
A90: 87 | B90: 5124 | C90: 92.8 | D90: 96.4 | E90: 96.8 | F90: 95.4 | I90: 96.8 | J90: 96.8 | K90: 96.4 | L90: 96.8 | M90: 96.8 | N90: 865 | O90: 화홍 장려상
A91: 88 | B91: 5215 | C91: 68.8 | D91: 90.2 | E91: 68.8 | F91: 74 | I91: 70.8 | J91: 67.2 | K91: 76 | L91: 72.8 | M91: 71.2 | N91: 659.8
A92: 89 | B92: 5217 | C92: 85 | D92: 88 | E92: 91.2 | F92: 74.2 | I92: 74.8 | J92: 78.4 | K92: 68.8 | L92: 68.8 | M92: 68.8 | N92: 698
A93: 90 | B93: 5219 | C93: 69.6 | D93: 79 | E93: 70.8 | F93: 79.4 | I93: 83 | J93: 80 | K93: 80 | L93: 84.6 | M93: 79.8 | N93: 706.2
A94: 91 | B94: 5220 | C94: 87 | D94: 82 | E94: 91.6 | F94: 90.2 | I94: 89.6 | J94: 78.8 | K94: 85.6 | L94: 88.8 | M94: 88.2 | N94: 781.8
A95: 92 | B95: 5221 | C95: 63.2 | D95: 83.6 | E95: 74 | F95: 87.8 | I95: 78.4 | J95: 78.8 | K95: 63.8 | L95: 73.2 | M95: 76.8 | N95: 679.6
A96: 93 | B96: 5229 | C96: 64.4 | D96: 63.2 | E96: 49.4 | F96: 71.4 | I96: 57.6 | J96: 69.4 | K96: 68.4 | L96: 75.8 | M96: 63.2 | N96: 582.8
A97: 94 | B97: 5230 | C97: 60 | D97: 62.2 | E97: 66.8 | F97: 62.2 | I97: 59 | J97: 72.8 | K97: 67.2 | L97: 58.6 | M97: 66.8 | N97: 575.6
A98: 95 | B98: 5231 | C98: 88 | D98: 92.2 | E98: 85.6 | F98: 88.4 | I98: 80 | J98: 84 | K98: 87 | L98: 85 | M98: 88.6 | N98: 778.8
A99: 96 | B99: 5315 | C99: 63.2 | D99: 84.2 | E99: 81.6 | F99: 70.8 | I99: 76.4 | J99: 84 | K99: 80.8 | L99: 77.8 | M99: 75.4 | N99: 694.2
A100: 97 | B100: 5317 | C100: 94 | D100: 95.4 | E100: 99.4 | F100: 96.4 | I100: 97 | J100: 95.4 | K100: 98.4 | L100: 96.8 | M100: 95.4 | N100: 868.2 | O100: 화홍 우수상
A101: 98 | B101: 5319 | C101: 70 | D101: 75.8 | E101: 89.8 | F101: 83.4 | I101: 77.4 | J101: 84.6 | K101: 83 | L101: 89.6 | M101: 86.6 | N101: 740.2
A102: 99 | B102: 5320 | C102: 59.4 | D102: 81.4 | E102: 68.2 | F102: 72.8 | I102: 78.2 | J102: 89.2 | K102: 76.8 | L102: 80.4 | M102: 75.2 | N102: 681.6
A103: 100 | B103: 5321 | C103: 64 | D103: 74.4 | E103: 72.2 | F103: 75.2 | I103: 74.2 | J103: 83.4 | K103: 77.8 | L103: 86.6 | M103: 70.4 | N103: 678.2
A104: 101 | B104: 5329 | C104: 77.4 | D104: 98.4 | E104: 89 | F104: 98 | I104: 86.8 | J104: 85.8 | K104: 82 | L104: 85 | M104: 80.6 | N104: 783 | O104: 화홍 장려상
A105: 102 | B105: 5516 | C105: 59.4 | D105: 75.8 | E105: 68.6 | F105: 73.8 | I105: 74.8 | J105: 81.4 | K105: 81.8 | L105: 81.4 | M105: 75.4 | N105: 672.4
A106: 103 | B106: 5520 | C106: 86 | D106: 86.6 | E106: 75.8 | F106: 75.4 | I106: 79.4 | J106: 89.8 | K106: 92.2 | L106: 91.8 | M106: 82.4 | N106: 759.4
A107: 104 | B107: 5530 | C107: 78.2 | D107: 76.8 | E107: 68 | F107: 91.6 | I107: 84.4 | J107: 88.4 | K107: 89.6 | L107: 91.2 | M107: 79 | N107: 747.2
A108: 105 | B108: 5616 | C108: 73.2 | D108: 76.8 | E108: 64.4 | F108: 77.8 | I108: 67.2 | J108: 82 | K108: 62.8 | L108: 70.4 | M108: 83 | N108: 657.6
A109: 106 | B109: 5618 | C109: 94.8 | D109: 95 | E109: 57 | F109: 76.8 | I109: 56 | J109: 78.8 | K109: 81.6 | L109: 68.2 | M109: 80.4 | N109: 688.6
A110: 107 | B110: 5619 | C110: 79.6 | D110: 85 | E110: 69.2 | F110: 68.8 | I110: 69.8 | J110: 70.4 | K110: 70.4 | L110: 66.8 | M110: 74.4 | N110: 654.4
A111: 108 | B111: 5620 | C111: 79.6 | D111: 89.6 | E111: 76.4 | F111: 76.4 | I111: 78.4 | J111: 78.4 | K111: 76.4 | L111: 76.4 | M111: 79 | N111: 710.6
A112: 109 | B112: 5621 | C112: 89.6 | D112: 96.8 | E112: 80 | F112: 93.6 | I112: 71.4 | J112: 89.6 | K112: 79 | L112: 91.6 | M112: 90.2 | N112: 781.8
A113: 110 | B113: 5629 | C113: 71.2 | D113: 86.6 | E113: 80 | F113: 83.4 | I113: 88.6 | J113: 86.6 | K113: 72.4 | L113: 83 | M113: 90.2 | N113: 742
A114: 111 | B114: 5630 | C114: 72.4 | D114: 86.4 | E114: 72.2 | F114: 80.4 | I114: 70.8 | J114: 88.6 | K114: 77.8 | L114: 76.4 | M114: 70.8 | N114: 695.8
A115: 112 | B115: 6103 | C115: 57.2 | D115: 56.4 | E115: 45.2 | F115: 42.8 | I115: 46.2 | J115: 61 | K115: 56.8 | L115: 56.8 | M115: 45.6 | N115: 468
A116: 113 | B116: 6107 | C116: 98.4 | D116: 90.2 | E116: 84.6 | F116: 88.2 | I116: 75.2 | J116: 55.8 | K116: 74.8 | L116: 75.4 | M116: 76.4 | N116: 719
A117: 114 | B117: 6108 | C117: 68.2 | D117: 79.6 | E117: 78.6 | F117: 83.6 | I117: 70 | J117: 81.8 | K117: 67.2 | L117: 74 | M117: 66.8 | N117: 669.8
A118: 115 | B118: 6111 | C118: 45.4 | D118: 69.6 | E118: 63 | F118: 59 | I118: 51.4 | J118: 23.6 | K118: 41.8 | L118: 52.4 | M118: 46.6 | N118: 452.8
A119: 116 | B119: 6113 | C119: 51 | D119: 78 | E119: 83.2 | F119: 96.8 | I119: 91.8 | J119: 81.2 | K119: 93.4 | L119: 88.2 | M119: 83.8 | N119: 747.4
A120: 117 | B120: 6118 | C120: 47.4 | D120: 57.2 | E120: 60 | F120: 52.2 | I120: 60 | J120: 63.4 | K120: 60 | L120: 69.6 | M120: 61.6 | N120: 531.4
A121: 118 | B121: 6124 | C121: 39.4 | D121: 55.4 | E121: 41.6 | F121: 34.4 | I121: 0 | J121: 0 | K121: 0 | L121: 0 | M121: 0 | N121: 170.8 | O121: 탈락
A122: 119 | B122: 6125 | C122: 58.8 | D122: 68.6 | E122: 50.8 | F122: 53.8 | I122: 39.4 | J122: 59.6 | K122: 60.4 | L122: 72.6 | M122: 62 | N122: 526
A123: 120 | B123: 6126 | C123: 55.2 | D123: 73.4 | E123: 68 | F123: 63.6 | I123: 74.8 | J123: 83.2 | K123: 59.2 | L123: 81.6 | M123: 72.8 | N123: 631.8
A124: 121 | B124: 6208 | C124: 56.8 | D124: 65 | E124: 48.2 | F124: 56.4 | I124: 48 | J124: 32 | K124: 46.6 | L124: 36.8 | M124: 0 | N124: 389.8 | O124: 탈락
A125: 122 | B125: 6209 | C125: 66.6 | D125: 74.8 | E125: 73.4 | F125: 60.6 | I125: 60.4 | J125: 73.8 | K125: 77.4 | L125: 76.8 | M125: 62 | N125: 625.8
A126: 123 | B126: 6213 | C126: 69.8 | D126: 75.8 | E126: 63.6 | F126: 65 | I126: 74.8 | J126: 77 | K126: 55 | L126: 80.8 | M126: 58 | N126: 619.8
A127: 124 | B127: 6216 | C127: 60 | D127: 69.4 | E127: 76.4 | F127: 62 | I127: 52.8 | J127: 37.6 | K127: 53.6 | L127: 81 | M127: 60.6 | N127: 553.4
A128: 125 | B128: 6217 | C128: 98.4 | D128: 83.6 | E128: 67 | F128: 60 | I128: 54.4 | J128: 49.2 | K128: 47.8 | L128: 63.2 | M128: 36 | N128: 559.6
A129: 126 | B129: 6219 | C129: 65 | D129: 87 | E129: 82 | F129: 74.4 | I129: 58.4 | J129: 60.8 | K129: 63.4 | L129: 94.4 | M129: 60.4 | N129: 645.8
A130: 127 | B130: 6220 | C130: 43.2 | D130: 73.2 | E130: 60 | F130: 48.2 | I130: 47.4 | J130: 50.4 | K130: 48.8 | L130: 59 | M130: 52 | N130: 482.2
A131: 128 | B131: 6225 | C131: 73.4 | D131: 90.2 | E131: 68.4 | F131: 61.4 | I131: 63 | J131: 81.4 | K131: 60 | L131: 78.8 | M131: 55.4 | N131: 632
A132: 129 | B132: 6226 | C132: 41.2 | D132: 36.4 | E132: 35 | F132: 46.2 | I132: 0 | J132: 0 | K132: 0 | L132: 0 | M132: 0 | N132: =SUM(C132:M132) -> 158.8 | O132: 탈락
A133: 130 | B133: 6228 | C133: 60 | D133: 79.4 | E133: 71.2 | F133: 65 | I133: 62 | J133: 60.2 | K133: 62.2 | L133: 73.4 | M133: 61.8 | N133: 595.2
A134: 131 | B134: 6229 | C134: 82 | D134: 92.2 | E134: 78 | F134: 76.8 | I134: 66.8 | J134: 80.6 | K134: 60 | L134: 74.8 | M134: 58 | N134: 669.2
A135: 132 | B135: 6230 | C135: 88.2 | D135: 62 | E135: 77 | F135: 65.2 | I135: 62 | J135: 57.6 | K135: 65.6 | L135: 55.4 | M135: 69.4 | N135: 602.4
A136: 133 | B136: 6231 | C136: 72.6 | D136: 65.2 | E136: 76.2 | F136: 49.8 | I136: 56 | J136: 60.4 | K136: 50.6 | L136: 63.4 | M136: 67.6 | N136: 561.8
A137: 134 | B137: 6232 | C137: 98.4 | D137: 98.4 | E137: 97 | F137: 95.4 | I137: 90.4 | J137: 86.2 | K137: 87.2 | L137: 91.4 | M137: 91.2 | N137: 835.6
A138: 135 | B138: 6303 | C138: 82 | D138: 79.6 | E138: 72.2 | F138: 66.6 | I138: 74.2 | J138: 74.8 | K138: 75.4 | L138: 71.8 | M138: 78 | N138: 674.6
A139: 136 | B139: 6305 | C139: 69.6 | D139: 67 | E139: 62.2 | F139: 68 | I139: 60.8 | J139: 52 | K139: 51.6 | L139: 56.8 | M139: 67.6 | N139: 555.6
A140: 137 | B140: 6306 | C140: 69.8 | D140: 63.6 | E140: 45 | F140: 58 | I140: 43.2 | J140: 51.2 | K140: 53.4 | L140: 61.6 | M140: 58 | N140: 503.8
A141: 138 | B141: 6307 | C141: 80 | D141: 60.4 | E141: 88.2 | F141: 88.6 | I141: 77.2 | J141: 82 | K141: 79 | L141: 83.6 | M141: 86.6 | N141: 725.6
A142: 139 | B142: 6309 | C142: 58 | D142: 38 | E142: 30.8 | F142: 26.8 | I142: 0 | J142: 0 | K142: 0 | L142: 0 | M142: 0 | N142: 153.6 | O142: 탈락
A143: 140 | B143: 6311 | C143: 93.4 | D143: 98.4 | E143: 90.8 | F143: 96.8 | I143: 85.2 | J143: 96.8 | K143: 82.2 | L143: 91.6 | M143: 92.2 | N143: 827.4
A144: 141 | B144: 6312 | C144: 95.4 | D144: 98.4 | E144: 88.8 | F144: 88.4 | I144: 80.6 | J144: 91.8 | K144: 88.6 | L144: 95 | M144: 88.6 | N144: 815.6
A145: 142 | B145: 6313 | C145: 49.6 | D145: 52.4 | E145: 56.8 | F145: 51.8 | I145: 47.6 | J145: 42.6 | K145: 36.8 | L145: 38.6 | M145: 0 | N145: 376.2 | O145: 탈락
A146: 143 | B146: 6314 | C146: 77.4 | D146: 63.4 | E146: 77 | F146: 58.4 | I146: 65 | J146: 60.4 | K146: 50.8 | L146: 52.8 | M146: 81.4 | N146: 586.6
A147: 144 | B147: 6316 | C147: 49.6 | D147: 56.8 | E147: 45.6 | F147: 52 | I147: 35 | J147: 43.2 | K147: 40.6 | L147: 38.8 | M147: 0 | N147: 361.6 | O147: 탈락
A148: 145 | B148: 6318 | C148: 89.2 | D148: 79 | E148: 84.6 | F148: 83.4 | I148: 68.2 | J148: 88 | K148: 71.8 | L148: 74 | M148: 78.2 | N148: 716.4
A149: 146 | B149: 6319 | C149: 58.4 | D149: 60 | E149: 68.6 | F149: 41.6 | I149: 39 | J149: 39.2 | K149: 0 | L149: 0 | M149: 0 | N149: 306.8 | O149: 탈락
A150: 147 | B150: 6322 | C150: 74.8 | D150: 47.6 | E150: 52.6 | F150: 44 | I150: 44.4 | J150: 48.6 | K150: 68.8 | L150: 49.2 | M150: 68.2 | N150: 498.2
A151: 148 | B151: 6324 | C151: 70.2 | D151: 41.2 | E151: 44.4 | F151: 53.8 | I151: 50.8 | J151: 41.6 | K151: 38.2 | L151: 44.4 | M151: 32.8 | N151: 417.4 | O151: 탈락
A152: 149 | B152: 6325 | C152: 60.4 | D152: 61.6 | E152: 54.2 | F152: 46.8 | I152: 50 | J152: 41.6 | K152: 56 | L152: 39.6 | M152: 58.4 | N152: 468.6
A153: 150 | B153: 6329 | C153: 76.6 | D153: 72.8 | E153: 85 | F153: 63 | I153: 70.8 | J153: 66.6 | K153: 59 | L153: 55.4 | M153: 69.8 | N153: 619
A154: 151 | B154: 6330 | C154: 79.4 | D154: 65 | E154: 82 | F154: 54.6 | I154: 74.8 | J154: 52.4 | K154: 68.6 | L154: 61.6 | M154: 69.2 | N154: 607.6
A155: 152 | B155: 6332 | C155: 81.6 | D155: 83.6 | E155: 80.2 | F155: 86.6 | I155: 82.6 | J155: 64.8 | K155: 76.8 | L155: 72.6 | M155: 48 | N155: 676.8
A156: 153 | B156: 6501 | C156: 98.4 | D156: 96.8 | E156: 98.4 | F156: 95.4 | I156: 89.8 | J156: 95.4 | K156: 80.4 | L156: 97 | M156: 75 | N156: 826.6
A157: 154 | B157: 6503 | C157: 46 | D157: 68.2 | E157: 66.6 | F157: 68.4 | I157: 43.4 | J157: 77.2 | K157: 44.4 | L157: 65.4 | M157: 45.6 | N157: 525.2
A158: 155 | B158: 6505 | C158: 56.8 | D158: 57.2 | E158: 51.4 | F158: 76.2 | I158: 53.2 | J158: 41.8 | K158: 50.2 | L158: 71.4 | M158: 38 | N158: 496.2
A159: 156 | B159: 6506 | C159: 96.4 | D159: 98.4 | E159: 98.4 | F159: 98.4 | I159: 98.4 | J159: 98.4 | K159: 97 | L159: 99.4 | M159: 97 | N159: 881.8 | O159: 광교 우수상
A160: 157 | B160: 6508 | C160: 60.4 | D160: 90.2 | E160: 73.8 | F160: 78.8 | I160: 75.2 | J160: 88.6 | K160: 73.2 | L160: 88.8 | M160: 67.2 | N160: 696.2
A161: 158 | B161: 6510 | C161: 60 | D161: 79.4 | E161: 56.8 | F161: 77.8 | I161: 56.4 | J161: 57.4 | K161: 53.2 | L161: 83.4 | M161: 61.6 | N161: 586
A162: 159 | B162: 6511 | C162: 55.2 | D162: 56.2 | E162: 53.2 | F162: 61.2 | I162: 56.8 | J162: 38.4 | K162: 54.8 | L162: 67 | M162: 39.6 | N162: 482.4 | O162: 탈락
A163: 160 | B163: 6512 | C163: 63.6 | D163: 78.4 | E163: 52.8 | F163: 86 | I163: 58.8 | J163: 63.8 | K163: 47.4 | L163: 66.6 | M163: 62 | N163: 579.4
A164: 161 | B164: 6513 | C164: 53.2 | D164: 79 | E164: 86.4 | F164: 88.2 | I164: 74.4 | J164: 48.2 | K164: 79.8 | L164: 86.8 | M164: 63.6 | N164: 659.6
A165: 162 | B165: 6515 | C165: 63.6 | D165: 64.8 | E165: 49.2 | F165: 68.4 | I165: 56.8 | J165: 34 | K165: 58.4 | L165: 59 | M165: 62 | N165: 516.2
A166: 163 | B166: 6519 | C166: 48.8 | D166: 40.2 | E166: 38.4 | F166: 54.4 | I166: 49.6 | J166: 52.4 | K166: 34 | L166: 0 | M166: 0 | N166: 317.8 | O166: 탈락
A167: 164 | B167: 6523 | C167: 62 | D167: 50 | E167: 42.6 | F167: 60.4 | I167: 52.8 | J167: 35.6 | K167: 50.2 | L167: 47 | M167: 39.2 | N167: 439.8 | O167: 탈락
A168: 165 | B168: 6525 | C168: 67 | D168: 62.2 | E168: 62 | F168: 73.2 | I168: 47.4 | J168: 52.8 | K168: 52.8 | L168: 70.2 | M168: 55.4 | N168: 543
A169: 166 | B169: 6526 | C169: 50 | D169: 55.6 | E169: 58 | F169: 83 | I169: 54.4 | J169: 28.8 | K169: 54.4 | L169: 42.8 | M169: 45.6 | N169: 472.6
A170: 167 | B170: 6527 | C170: 53.2 | D170: 71.6 | E170: 53.8 | F170: 59.2 | I170: 46.6 | J170: 56.8 | K170: 56.8 | L170: 67 | M170: 54.8 | N170: 519.8
A171: 168 | B171: 6528 | C171: 62 | D171: 73.6 | E171: 51.6 | F171: 53.6 | I171: 43.4 | J171: 28 | K171: 66.6 | L171: 55.2 | M171: 48.6 | N171: 482.6
A172: 169 | B172: 6530 | C172: 70.8 | D172: 85.6 | E172: 76.2 | F172: 77.6 | I172: 64 | J172: 71.4 | K172: 76.6 | L172: 82 | M172: 70.2 | N172: 674.4
A173: 170 | B173: 6531 | C173: 39.8 | D173: 70 | E173: 46.4 | F173: 45.6 | I173: 39.8 | J173: 0 | K173: 0 | L173: 0 | M173: 0 | N173: 241.6 | O173: 탈락
A174: 171 | B174: 6532 | C174: 40.6 | D174: 61 | E174: 44 | F174: 57.8 | I174: 47.6 | J174: 28.6 | K174: 47.6 | L174: 49.2 | M174: 42.4 | N174: 418.8
A175: 172 | B175: 6601 | C175: 81.4 | D175: 59.8 | E175: 51.2 | F175: 41.6 | I175: 51.4 | J175: 65.8 | K175: 39.4 | L175: 53.2 | M175: 40.6 | N175: 484.4
A176: 173 | B176: 6602 | C176: 91.8 | D176: 72 | E176: 75.4 | F176: 69 | I176: 74 | J176: 46.2 | K176: 78.4 | L176: 54.2 | M176: 71.6 | N176: 632.6
A177: 174 | B177: 6603 | C177: 76 | D177: 47.8 | E177: 44.4 | F177: 47.6 | I177: 43.6 | J177: 37.8 | K177: 72.4 | L177: 49.4 | M177: 67.4 | N177: 486.4
A178: 175 | B178: 6606 | C178: 68.4 | D178: 36.4 | E178: 63.8 | F178: 49 | I178: 41.2 | J178: 32.8 | K178: 0 | L178: 0 | M178: 0 | N178: 291.6 | O178: 탈락
A179: 176 | B179: 6607 | C179: 93.8 | D179: 71.6 | E179: 57 | F179: 55.2 | I179: 45.6 | J179: 59.4 | K179: 51.4 | L179: 52.4 | M179: 70 | N179: 556.4
A180: 177 | B180: 6608 | C180: 77 | D180: 62 | E180: 59.4 | F180: 67.8 | I180: 69.4 | J180: 60.4 | K180: 44.6 | L180: 50.2 | M180: 52.8 | N180: 543.6
A181: 178 | B181: 6610 | C181: 85 | D181: 71.2 | E181: 67.8 | F181: 68 | I181: 80.2 | J181: 58.8 | K181: 72 | L181: 60.4 | M181: 80.4 | N181: 643.8
A182: 179 | B182: 6611 | C182: 78.4 | D182: 60 | E182: 54 | F182: 73.8 | I182: 41.2 | J182: 39 | K182: 57.4 | L182: 49.2 | M182: 65.4 | N182: 518.4
A183: 180 | B183: 6612 | C183: 81.4 | D183: 56.4 | E183: 66.2 | F183: 75 | I183: 79.8 | J183: 53.4 | K183: 78.8 | L183: 60 | M183: 83.6 | N183: 634.6
A184: 181 | B184: 6613 | C184: 96.8 | D184: 96.4 | E184: 93.8 | F184: 98.4 | I184: 95 | J184: 98.4 | K184: 93.8 | L184: 98.4 | M184: 98.4 | N184: 869.4 | O184: 광교 장려상
A185: 182 | B185: 6614 | C185: 82 | D185: 67.6 | E185: 60 | F185: 85 | I185: 76.8 | J185: 59 | K185: 67.2 | L185: 60.4 | M185: 71 | N185: 629
A186: 183 | B186: 6615 | C186: 93.2 | D186: 90.2 | E186: 80.6 | F186: 94.8 | I186: 90.2 | J186: 85 | K186: 77.2 | L186: 72.8 | M186: 85.8 | N186: 769.8
A187: 184 | B187: 6618 | C187: 77.2 | D187: 51.2 | E187: 60.8 | F187: 55.6 | I187: 58.6 | J187: 45.6 | K187: 56.4 | L187: 55.2 | M187: 59 | N187: 519.6
A188: 185 | B188: 6619 | C188: 87.2 | D188: 70.6 | E188: 49.4 | F188: 57.2 | I188: 30.6 | J188: 55.4 | K188: 75.8 | L188: 35 | M188: 0 | N188: 461.2 | O188: 탈락
A189: 186 | B189: 6620 | C189: 90.2 | D189: 94.8 | E189: 84.2 | F189: 95.4 | I189: 78.6 | J189: 86.6 | K189: 85 | L189: 73.8 | M189: 80 | N189: 768.6
A190: 187 | B190: 6621 | C190: 85.2 | D190: 48.8 | E190: 67.6 | F190: 53.6 | I190: 74.8 | J190: 60 | K190: 81.6 | L190: 68 | M190: 85 | N190: 624.6
A191: 188 | B191: 6624 | C191: 98.4 | D191: 99.4 | E191: 98.4 | F191: 98.4 | I191: 98.4 | J191: 98.4 | K191: 98.4 | L191: 98.4 | M191: 98.4 | N191: 886.6 | O191: 여자 대상
A192: 189 | B192: 6625 | C192: 59.4 | D192: 38.4 | E192: 56.6 | F192: 65.4 | I192: 75.2 | J192: 60.2 | K192: 62 | L192: 47.2 | M192: 70.6 | N192: 535
A193: 190 | B193: 6627 | C193: 96.8 | D193: 91.6 | E193: 91.2 | F193: 99.4 | I193: 98.4 | J193: 90.6 | K193: 98.4 | L193: 95.2 | M193: 98.4 | N193: 860 | O193: 광교 장려상
A194: 191 | B194: 6631 | C194: 80.4 | D194: 52.8 | E194: 52.4 | F194: 73.4 | I194: 28.4 | J194: 46.6 | K194: 47.6 | L194: 44.2 | M194: 54 | N194: 479.8
A195: 192 | B195: 6632 | C195: 87 | D195: 59.4 | E195: 60.6 | F195: 60.8 | I195: 52.4 | J195: 34.4 | K195: 51.6 | L195: 38 | M195: 0 | N195: 444.2 | O195: 탈락

Sheet 점수순
A1: 생활관 정리정돈/청소 상태 평가 현황(14-2학기 점수 순)
A2: NO | B2: 호 실 | C2: 9월 | F2: 10월 | J2: 11월 | N2: 총점 | O2: 시상내역
C3: 3주 | D3: 4주 | E3: 5주 | F3: 1주 | G3: 2주 | H3: 3주 | I3: 4주 | J3: 1주 | K3: 2주 | L3: 3주 | M3: 4주
A4: 1 | B4: 6624 | C4: 98.4 | D4: 99.4 | E4: 98.4 | F4: 98.4 | I4: 98.4 | J4: 98.4 | K4: 98.4 | L4: 98.4 | M4: 98.4 | N4: =SUM(C4:M4) -> 886.6 | O4: 여자 대상
A5: 2 | B5: 1319 | C5: 98.4 | D5: 98.4 | E5: 98.4 | F5: 98 | I5: 99.4 | J5: 98.4 | K5: 98.4 | L5: 98.4 | M5: 98.4 | N5: 886.2 | O5: 남자 대상
A6: 3 | B6: 1206 | C6: 98.4 | D6: 98.4 | E6: 98.4 | F6: 98 | I6: 98.4 | J6: 98 | K6: 98 | L6: 98.4 | M6: 98 | N6: 884 | O6: 남제 장려상
A7: 4 | B7: 1207 | C7: 98 | D7: 98.4 | E7: 98.4 | F7: 98 | I7: 98.4 | J7: 98 | K7: 98.4 | L7: 98 | M7: 98.4 | N7: 884 | O7: 남제 우수상
A8: 5 | B8: 1115 | C8: 96.8 | D8: 98.4 | E8: 98.4 | F8: 98.4 | I8: 98.4 | J8: 98.4 | K8: 97 | L8: 98.4 | M8: 98.4 | N8: 882.6 | O8: 남제 장려상
A9: 6 | B9: 6506 | C9: 96.4 | D9: 98.4 | E9: 98.4 | F9: 98.4 | I9: 98.4 | J9: 98.4 | K9: 97 | L9: 99.4 | M9: 97 | N9: 881.8 | O9: 광교 우수상
A10: 7 | B10: 1530 | C10: 98.4 | D10: 96.8 | E10: 98 | F10: 96.4 | I10: 98 | J10: 98 | K10: 98.4 | L10: 98.4 | M10: 96.8 | N10: 879.2
A11: 8 | B11: 1539 | C11: 98.4 | D11: 98.4 | E11: 96.8 | F11: 98.4 | I11: 94.8 | J11: 96.8 | K11: 99.4 | L11: 96.8 | M11: 98 | N11: 877.8
A12: 9 | B12: 1223 | C12: 98.4 | D12: 98.4 | E12: 96.4 | F12: 96.4 | I12: 98 | J12: 95.2 | K12: 96.4 | L12: 98 | M12: 98 | N12: 875.2
A13: 10 | B13: 1544 | C13: 98.4 | D13: 98.4 | E13: 96.8 | F13: 96.4 | I13: 96 | J13: 96.4 | K13: 98 | L13: 98.4 | M13: 96.4 | N13: 875.2
A14: 11 | B14: 1529 | C14: 97 | D14: 98.4 | E14: 94.8 | F14: 98 | I14: 98 | J14: 96.4 | K14: 95 | L14: 98.4 | M14: 98 | N14: 874
A15: 12 | B15: 6613 | C15: 96.8 | D15: 96.4 | E15: 93.8 | F15: 98.4 | I15: 95 | J15: 98.4 | K15: 93.8 | L15: 98.4 | M15: 98.4 | N15: 869.4 | O15: 광교 장려상
A16: 13 | B16: 5317 | C16: 94 | D16: 95.4 | E16: 99.4 | F16: 96.4 | I16: 97 | J16: 95.4 | K16: 98.4 | L16: 96.8 | M16: 95.4 | N16: 868.2 | O16: 화홍 우수상
A17: 14 | B17: 5124 | C17: 92.8 | D17: 96.4 | E17: 96.8 | F17: 95.4 | I17: 96.8 | J17: 96.8 | K17: 96.4 | L17: 96.8 | M17: 96.8 | N17: 865 | O17: 화홍 장려상
A18: 15 | B18: 6627 | C18: 96.8 | D18: 91.6 | E18: 91.2 | F18: 99.4 | I18: 98.4 | J18: 90.6 | K18: 98.4 | L18: 95.2 | M18: 98.4 | N18: 860 | O18: 광교 장려상
A19: 16 | B19: 2114 | C19: 82 | D19: 98 | E19: 90.4 | F19: 95.4 | I19: 95.4 | J19: 99.4 | K19: 94 | L19: 94 | M19: 90.8 | N19: 839.4 | O19: 용지 우수상
A20: 17 | B20: 1542 | C20: 99.4 | D20: 98.4 | E20: 98 | F20: 98 | I20: 96.4 | J20: 59 | K20: 96.8 | L20: 96.4 | M20: 94.8 | N20: 837.2
A21: 18 | B21: 1344 | C21: 96.8 | D21: 96.8 | E21: 91.6 | F21: 96.8 | I21: 93.8 | J21: 96.4 | K21: 75.2 | L21: 91.6 | M21: 96.8 | N21: 835.8
A22: 19 | B22: 2516 | C22: 89.8 | D22: 98.4 | E22: 88.8 | F22: 95.4 | I22: 84.8 | J22: 97 | K22: 93.8 | L22: 93.8 | M22: 94 | N22: 835.8 | O22: 용지 장려상
A23: 20 | B23: 6232 | C23: 98.4 | D23: 98.4 | E23: 97 | F23: 95.4 | I23: 90.4 | J23: 86.2 | K23: 87.2 | L23: 91.4 | M23: 91.2 | N23: 835.6
A24: 21 | B24: 1533 | C24: 98 | D24: 98 | E24: 98 | F24: 96.4 | I24: 98 | J24: 94.4 | K24: 96.8 | L24: 51.2 | M24: 98.4 | N24: 829.2
A25: 22 | B25: 6311 | C25: 93.4 | D25: 98.4 | E25: 90.8 | F25: 96.8 | I25: 85.2 | J25: 96.8 | K25: 82.2 | L25: 91.6 | M25: 92.2 | N25: 827.4
A26: 23 | B26: 6501 | C26: 98.4 | D26: 96.8 | E26: 98.4 | F26: 95.4 | I26: 89.8 | J26: 95.4 | K26: 80.4 | L26: 97 | M26: 75 | N26: 826.6
A27: 24 | B27: 2514 | C27: 88.8 | D27: 98 | E27: 90.4 | F27: 91.8 | I27: 87.2 | J27: 95.4 | K27: 90.4 | L27: 90.4 | M27: 94 | N27: 826.4 | O27: 용지 장려상
A28: 25 | B28: 1508 | C28: 98.4 | D28: 96 | E28: 82.4 | F28: 94.4 | I28: 94.4 | J28: 96.4 | K28: 95 | L28: 87.6 | M28: 78.6 | N28: 823.2
A29: 26 | B29: 6312 | C29: 95.4 | D29: 98.4 | E29: 88.8 | F29: 88.4 | I29: 80.6 | J29: 91.8 | K29: 88.6 | L29: 95 | M29: 88.6 | N29: 815.6
A30: 27 | B30: 1511 | C30: 96.8 | D30: 94.8 | E30: 89.6 | F30: 98 | I30: 95.2 | J30: 96.4 | K30: 64.6 | L30: 87 | M30: 82.4 | N30: 804.8
A31: 28 | B31: 1144 | C31: 93.4 | D31: 95.4 | E31: 96.8 | F31: 95 | I31: 95.2 | J31: 96.4 | K31: 54.8 | L31: 83.6 | M31: 87.6 | N31: 798.2
A32: 29 | B32: 2217 | C32: 58.4 | D32: 91 | E32: 89.4 | F32: 95.4 | I32: 90.8 | J32: 87.8 | K32: 93.4 | L32: 93.4 | M32: 96.8 | N32: 796.4
A33: 30 | B33: 1525 | C33: 73 | D33: 96.8 | E33: 98 | F33: 91.4 | I33: 86.4 | J33: 59.4 | K33: 92.4 | L33: 98.4 | M33: 96.8 | N33: 792.6
A34: 31 | B34: 5329 | C34: 77.4 | D34: 98.4 | E34: 89 | F34: 98 | I34: 86.8 | J34: 85.8 | K34: 82 | L34: 85 | M34: 80.6 | N34: 783 | O34: 화홍 장려상
A35: 32 | B35: 5220 | C35: 87 | D35: 82 | E35: 91.6 | F35: 90.2 | I35: 89.6 | J35: 78.8 | K35: 85.6 | L35: 88.8 | M35: 88.2 | N35: 781.8
A36: 33 | B36: 5621 | C36: 89.6 | D36: 96.8 | E36: 80 | F36: 93.6 | I36: 71.4 | J36: 89.6 | K36: 79 | L36: 91.6 | M36: 90.2 | N36: =SUM(C36:M36) -> 781.8
A37: 34 | B37: 5231 | C37: 88 | D37: 92.2 | E37: 85.6 | F37: 88.4 | I37: 80 | J37: 84 | K37: 87 | L37: 85 | M37: 88.6 | N37: 778.8
A38: 35 | B38: 6615 | C38: 93.2 | D38: 90.2 | E38: 80.6 | F38: 94.8 | I38: 90.2 | J38: 85 | K38: 77.2 | L38: 72.8 | M38: 85.8 | N38: 769.8
A39: 36 | B39: 6620 | C39: 90.2 | D39: 94.8 | E39: 84.2 | F39: 95.4 | I39: 78.6 | J39: 86.6 | K39: 85 | L39: 73.8 | M39: 80 | N39: 768.6
A40: 37 | B40: 1209 | C40: 92.2 | D40: 88.4 | E40: 91.6 | F40: 83 | I40: 91.2 | J40: 74.2 | K40: 84 | L40: 71.2 | M40: 85 | N40: 760.8
A41: 38 | B41: 5520 | C41: 86 | D41: 86.6 | E41: 75.8 | F41: 75.4 | I41: 79.4 | J41: 89.8 | K41: 92.2 | L41: 91.8 | M41: 82.4 | N41: 759.4
A42: 39 | B42: 1229 | C42: 96.8 | D42: 91.2 | E42: 81.2 | F42: 83.4 | I42: 94.8 | J42: 69.6 | K42: 89.2 | L42: 64.4 | M42: 86 | N42: 756.6
A43: 40 | B43: 1330 | C43: 86.6 | D43: 96.8 | E43: 65.6 | F43: 96.8 | I43: 81 | J43: 95.4 | K43: 82 | L43: 78 | M43: 74.4 | N43: 756.6
A44: 41 | B44: 1225 | C44: 94.8 | D44: 82.6 | E44: 94.8 | F44: 95.2 | I44: 89.6 | J44: 68.4 | K44: 88.2 | L44: 60.4 | M44: 78 | N44: 752
A45: 42 | B45: 6113 | C45: 51 | D45: 78 | E45: 83.2 | F45: 96.8 | I45: 91.8 | J45: 81.2 | K45: 93.4 | L45: 88.2 | M45: 83.8 | N45: 747.4
A46: 43 | B46: 5530 | C46: 78.2 | D46: 76.8 | E46: 68 | F46: 91.6 | I46: 84.4 | J46: 88.4 | K46: 89.6 | L46: 91.2 | M46: 79 | N46: 747.2
A47: 44 | B47: 1538 | C47: 98.4 | D47: 98.4 | E47: 68.6 | F47: 93.2 | I47: 96 | J47: 52.8 | K47: 98 | L47: 67.8 | M47: 73 | N47: 746.2
A48: 45 | B48: 5629 | C48: 71.2 | D48: 86.6 | E48: 80 | F48: 83.4 | I48: 88.6 | J48: 86.6 | K48: 72.4 | L48: 83 | M48: 90.2 | N48: 742
A49: 46 | B49: 5319 | C49: 70 | D49: 75.8 | E49: 89.8 | F49: 83.4 | I49: 77.4 | J49: 84.6 | K49: 83 | L49: 89.6 | M49: 86.6 | N49: 740.2
A50: 47 | B50: 1321 | C50: 96.8 | D50: 96.8 | E50: 85 | F50: 78.4 | I50: 86.4 | J50: 82.6 | K50: 65.6 | L50: 71 | M50: 74.4 | N50: 737
A51: 48 | B51: 1137 | C51: 92.8 | D51: 86.2 | E51: 87 | F51: 87.8 | I51: 73.4 | J51: 88.4 | K51: 58 | L51: 84.6 | M51: 77.8 | N51: 736
A52: 49 | B52: 1124 | C52: 92.8 | D52: 93.6 | E52: 86 | F52: 75 | I52: 63.4 | J52: 83 | K52: 76.6 | L52: 86.2 | M52: 78.4 | N52: 735
A53: 50 | B53: 2506 | C53: 76.4 | D53: 67 | E53: 56 | F53: 61 | I53: 92.8 | J53: 92.2 | K53: 96.4 | L53: 96.4 | M53: 94.8 | N53: 733
A54: 51 | B54: 1132 | C54: 87 | D54: 94.8 | E54: 96.8 | F54: 84.4 | I54: 84 | J54: 67.8 | K54: 64.6 | L54: 82 | M54: 70 | N54: 731.4
A55: 52 | B55: 1519 | C55: 79.2 | D55: 90 | E55: 67 | F55: 94.8 | I55: 62.8 | J55: 96.8 | K55: 66 | L55: 89.6 | M55: 85 | N55: 731.2
A56: 53 | B56: 6307 | C56: 80 | D56: 60.4 | E56: 88.2 | F56: 88.6 | I56: 77.2 | J56: 82 | K56: 79 | L56: 83.6 | M56: 86.6 | N56: 725.6
A57: 54 | B57: 1307 | C57: 96.4 | D57: 98.4 | E57: 60.2 | F57: 84.6 | I57: 96.8 | J57: 48 | K57: 83.8 | L57: 91.2 | M57: 65.6 | N57: 725
A58: 55 | B58: 6107 | C58: 98.4 | D58: 90.2 | E58: 84.6 | F58: 88.2 | I58: 75.2 | J58: 55.8 | K58: 74.8 | L58: 75.4 | M58: 76.4 | N58: 719
A59: 56 | B59: 6318 | C59: 89.2 | D59: 79 | E59: 84.6 | F59: 83.4 | I59: 68.2 | J59: 88 | K59: 71.8 | L59: 74 | M59: 78.2 | N59: 716.4
A60: 57 | B60: 5620 | C60: 79.6 | D60: 89.6 | E60: 76.4 | F60: 76.4 | I60: 78.4 | J60: 78.4 | K60: 76.4 | L60: 76.4 | M60: 79 | N60: 710.6
A61: 58 | B61: 2220 | C61: 56.4 | D61: 90.8 | E61: 82.6 | F61: 83.2 | I61: 78.4 | J61: 87.8 | K61: 68.6 | L61: 68.6 | M61: 91.6 | N61: 708
A62: 59 | B62: 5219 | C62: 69.6 | D62: 79 | E62: 70.8 | F62: 79.4 | I62: 83 | J62: 80 | K62: 80 | L62: 84.6 | M62: 79.8 | N62: 706.2
A63: 60 | B63: 1338 | C63: 84.2 | D63: 85.6 | E63: 75.8 | F63: 71.6 | I63: 78.4 | J63: 71.8 | K63: 83 | L63: 76.8 | M63: 76.8 | N63: 704
A64: 61 | B64: 1201 | C64: 94.8 | D64: 73.2 | E64: 66.6 | F64: 94.8 | I64: 81.4 | J64: 63.8 | K64: 64 | L64: 76.4 | M64: 88.6 | N64: 703.6
A65: 62 | B65: 2124 | C65: 69.2 | D65: 91.6 | E65: 75.6 | F65: 86.6 | I65: 76.8 | J65: 68.8 | K65: 75.6 | L65: 75.6 | M65: 80.8 | N65: 700.6
A66: 63 | B66: 1235 | C66: 86.4 | D66: 76.6 | E66: 91.6 | F66: 53.6 | I66: 91.8 | J66: 70.6 | K66: 81.2 | L66: 61.8 | M66: 85 | N66: 698.6
A67: 64 | B67: 1306 | C67: 93.2 | D67: 71.8 | E67: 96.4 | F67: 65.6 | I67: 87.6 | J67: 64.6 | K67: 56.8 | L67: 68.8 | M67: 93.2 | N67: 698
A68: 65 | B68: 5217 | C68: 85 | D68: 88 | E68: 91.2 | F68: 74.2 | I68: 74.8 | J68: 78.4 | K68: 68.8 | L68: 68.8 | M68: 68.8 | N68: =SUM(C68:M68) -> 698
A69: 66 | B69: 6508 | C69: 60.4 | D69: 90.2 | E69: 73.8 | F69: 78.8 | I69: 75.2 | J69: 88.6 | K69: 73.2 | L69: 88.8 | M69: 67.2 | N69: 696.2
A70: 67 | B70: 5630 | C70: 72.4 | D70: 86.4 | E70: 72.2 | F70: 80.4 | I70: 70.8 | J70: 88.6 | K70: 77.8 | L70: 76.4 | M70: 70.8 | N70: 695.8
A71: 68 | B71: 5315 | C71: 63.2 | D71: 84.2 | E71: 81.6 | F71: 70.8 | I71: 76.4 | J71: 84 | K71: 80.8 | L71: 77.8 | M71: 75.4 | N71: 694.2
A72: 69 | B72: 2229 | C72: 81.6 | D72: 71.8 | E72: 87.8 | F72: 71.8 | I72: 78 | J72: 67.2 | K72: 78 | L72: 78 | M72: 77 | N72: 691.2
A73: 70 | B73: 1301 | C73: 81.2 | D73: 73.8 | E73: 96.8 | F73: 72.2 | I73: 89.6 | J73: 77.8 | K73: 72.4 | L73: 59.4 | M73: 67.8 | N73: 691
A74: 71 | B74: 5618 | C74: 94.8 | D74: 95 | E74: 57 | F74: 76.8 | I74: 56 | J74: 78.8 | K74: 81.6 | L74: 68.2 | M74: 80.4 | N74: 688.6
A75: 72 | B75: 1243 | C75: 83.8 | D75: 76.2 | E75: 90.4 | F75: 81.8 | I75: 91.2 | J75: 69.8 | K75: 49.2 | L75: 61 | M75: 84.4 | N75: 687.8
A76: 73 | B76: 1213 | C76: 79.8 | D76: 78.6 | E76: 61.2 | F76: 33.8 | I76: 92.8 | J76: 85.4 | K76: 82.4 | L76: 87 | M76: 84.6 | N76: 685.6
A77: 74 | B77: 5320 | C77: 59.4 | D77: 81.4 | E77: 68.2 | F77: 72.8 | I77: 78.2 | J77: 89.2 | K77: 76.8 | L77: 80.4 | M77: 75.2 | N77: 681.6
A78: 75 | B78: 5221 | C78: 63.2 | D78: 83.6 | E78: 74 | F78: 87.8 | I78: 78.4 | J78: 78.8 | K78: 63.8 | L78: 73.2 | M78: 76.8 | N78: 679.6
A79: 76 | B79: 5321 | C79: 64 | D79: 74.4 | E79: 72.2 | F79: 75.2 | I79: 74.2 | J79: 83.4 | K79: 77.8 | L79: 86.6 | M79: 70.4 | N79: 678.2
A80: 77 | B80: 6332 | C80: 81.6 | D80: 83.6 | E80: 80.2 | F80: 86.6 | I80: 82.6 | J80: 64.8 | K80: 76.8 | L80: 72.6 | M80: 48 | N80: 676.8
A81: 78 | B81: 5115 | C81: 94.4 | D81: 50.8 | E81: 80.4 | F81: 66.8 | I81: 86.6 | J81: 80 | K81: 61.4 | L81: 83.6 | M81: 72.4 | N81: 676.4
A82: 79 | B82: 6303 | C82: 82 | D82: 79.6 | E82: 72.2 | F82: 66.6 | I82: 74.2 | J82: 74.8 | K82: 75.4 | L82: 71.8 | M82: 78 | N82: 674.6
A83: 80 | B83: 6530 | C83: 70.8 | D83: 85.6 | E83: 76.2 | F83: 77.6 | I83: 64 | J83: 71.4 | K83: 76.6 | L83: 82 | M83: 70.2 | N83: 674.4
A84: 81 | B84: 5516 | C84: 59.4 | D84: 75.8 | E84: 68.6 | F84: 73.8 | I84: 74.8 | J84: 81.4 | K84: 81.8 | L84: 81.4 | M84: 75.4 | N84: 672.4
A85: 82 | B85: 6108 | C85: 68.2 | D85: 79.6 | E85: 78.6 | F85: 83.6 | I85: 70 | J85: 81.8 | K85: 67.2 | L85: 74 | M85: 66.8 | N85: 669.8
A86: 83 | B86: 1232 | C86: 68.2 | D86: 84.6 | E86: 86.8 | F86: 67.2 | I86: 88 | J86: 64.4 | K86: 70.4 | L86: 63 | M86: 76.8 | N86: 669.4
A87: 84 | B87: 6229 | C87: 82 | D87: 92.2 | E87: 78 | F87: 76.8 | I87: 66.8 | J87: 80.6 | K87: 60 | L87: 74.8 | M87: 58 | N87: 669.2
A88: 85 | B88: 1536 | C88: 96.8 | D88: 73.4 | E88: 78.2 | F88: 70.6 | I88: 73.8 | J88: 57.4 | K88: 66.4 | L88: 61 | M88: 85 | N88: 662.6
A89: 86 | B89: 2529 | C89: 74.8 | D89: 92.8 | E89: 76.6 | F89: 75.8 | I89: 46.6 | J89: 85.2 | K89: 68.8 | L89: 68.8 | M89: 71 | N89: 660.4
A90: 87 | B90: 5215 | C90: 68.8 | D90: 90.2 | E90: 68.8 | F90: 74 | I90: 70.8 | J90: 67.2 | K90: 76 | L90: 72.8 | M90: 71.2 | N90: 659.8
A91: 88 | B91: 6513 | C91: 53.2 | D91: 79 | E91: 86.4 | F91: 88.2 | I91: 74.4 | J91: 48.2 | K91: 79.8 | L91: 86.8 | M91: 63.6 | N91: 659.6
A92: 89 | B92: 5113 | C92: 68.4 | D92: 70.8 | E92: 69.8 | F92: 88 | I92: 67.2 | J92: 70.4 | K92: 76.8 | L92: 75.6 | M92: 72.4 | N92: 659.4
A93: 90 | B93: 1111 | C93: 81.4 | D93: 65 | E93: 81.4 | F93: 78.2 | I93: 77.4 | J93: 67.2 | K93: 56.4 | L93: 79.4 | M93: 71.2 | N93: 657.6
A94: 91 | B94: 5616 | C94: 73.2 | D94: 76.8 | E94: 64.4 | F94: 77.8 | I94: 67.2 | J94: 82 | K94: 62.8 | L94: 70.4 | M94: 83 | N94: 657.6
A95: 92 | B95: 5619 | C95: 79.6 | D95: 85 | E95: 69.2 | F95: 68.8 | I95: 69.8 | J95: 70.4 | K95: 70.4 | L95: 66.8 | M95: 74.4 | N95: 654.4
A96: 93 | B96: 2227 | C96: 73.2 | D96: 70.6 | E96: 71.2 | F96: 68.6 | I96: 81 | J96: 61 | K96: 69.2 | L96: 69.2 | M96: 83.6 | N96: 647.6
A97: 94 | B97: 2311 | C97: 75.4 | D97: 70.8 | E97: 59 | F97: 67.2 | I97: 80 | J97: 46 | K97: 83.6 | L97: 83.6 | M97: 82 | N97: 647.6
A98: 95 | B98: 6219 | C98: 65 | D98: 87 | E98: 82 | F98: 74.4 | I98: 58.4 | J98: 60.8 | K98: 63.4 | L98: 94.4 | M98: 60.4 | N98: 645.8
A99: 96 | B99: 1142 | C99: 64.4 | D99: 61.4 | E99: 82 | F99: 74.2 | I99: 71.6 | J99: 84.8 | K99: 58.2 | L99: 76.8 | M99: 71.2 | N99: 644.6
A100: 97 | B100: 6610 | C100: 85 | D100: 71.2 | E100: 67.8 | F100: 68 | I100: 80.2 | J100: 58.8 | K100: 72 | L100: 60.4 | M100: 80.4 | N100: =SUM(C100:M100) -> 643.8
A101: 98 | B101: 2107 | C101: 43.6 | D101: 86.2 | E101: 73.8 | F101: 78.4 | I101: 79.4 | J101: 90.2 | K101: 56 | L101: 56 | M101: 75.6 | N101: 639.2
A102: 99 | B102: 1208 | C102: 76.4 | D102: 84.4 | E102: 75.8 | F102: 63 | I102: 75.8 | J102: 60.6 | K102: 73.4 | L102: 67.6 | M102: 61 | N102: 638
A103: 100 | B103: 1342 | C103: 81.4 | D103: 77.2 | E103: 72.2 | F103: 68 | I103: 78.4 | J103: 69.8 | K103: 62.4 | L103: 63 | M103: 63 | N103: 635.4
A104: 101 | B104: 6612 | C104: 81.4 | D104: 56.4 | E104: 66.2 | F104: 75 | I104: 79.8 | J104: 53.4 | K104: 78.8 | L104: 60 | M104: 83.6 | N104: 634.6
A105: 102 | B105: 6602 | C105: 91.8 | D105: 72 | E105: 75.4 | F105: 69 | I105: 74 | J105: 46.2 | K105: 78.4 | L105: 54.2 | M105: 71.6 | N105: 632.6
A106: 103 | B106: 6225 | C106: 73.4 | D106: 90.2 | E106: 68.4 | F106: 61.4 | I106: 63 | J106: 81.4 | K106: 60 | L106: 78.8 | M106: 55.4 | N106: 632
A107: 104 | B107: 5117 | C107: 72.8 | D107: 72.4 | E107: 57 | F107: 70.8 | I107: 72.4 | J107: 68.4 | K107: 64.8 | L107: 76.4 | M107: 76.8 | N107: 631.8
A108: 105 | B108: 6126 | C108: 55.2 | D108: 73.4 | E108: 68 | F108: 63.6 | I108: 74.8 | J108: 83.2 | K108: 59.2 | L108: 81.6 | M108: 72.8 | N108: 631.8
A109: 106 | B109: 6614 | C109: 82 | D109: 67.6 | E109: 60 | F109: 85 | I109: 76.8 | J109: 59 | K109: 67.2 | L109: 60.4 | M109: 71 | N109: 629
A110: 107 | B110: 6209 | C110: 66.6 | D110: 74.8 | E110: 73.4 | F110: 60.6 | I110: 60.4 | J110: 73.8 | K110: 77.4 | L110: 76.8 | M110: 62 | N110: 625.8
A111: 108 | B111: 1524 | C111: 73.2 | D111: 75.4 | E111: 71.4 | F111: 81.4 | I111: 82.2 | J111: 55.8 | K111: 49.4 | L111: 58.8 | M111: 78.2 | N111: 625.8
A112: 109 | B112: 6621 | C112: 85.2 | D112: 48.8 | E112: 67.6 | F112: 53.6 | I112: 74.8 | J112: 60 | K112: 81.6 | L112: 68 | M112: 85 | N112: 624.6
A113: 110 | B113: 1540 | C113: 62.4 | D113: 94.8 | E113: 78.2 | F113: 65.6 | I113: 84.8 | J113: 69 | K113: 33.8 | L113: 54.8 | M113: 79 | N113: 622.4
A114: 111 | B114: 6213 | C114: 69.8 | D114: 75.8 | E114: 63.6 | F114: 65 | I114: 74.8 | J114: 77 | K114: 55 | L114: 80.8 | M114: 58 | N114: 619.8
A115: 112 | B115: 6329 | C115: 76.6 | D115: 72.8 | E115: 85 | F115: 63 | I115: 70.8 | J115: 66.6 | K115: 59 | L115: 55.4 | M115: 69.8 | N115: 619
A116: 113 | B116: 1322 | C116: 78.2 | D116: 86 | E116: 71.6 | F116: 66.6 | I116: 62.6 | J116: 77 | K116: 60 | L116: 46.4 | M116: 68.2 | N116: 616.6
A117: 114 | B117: 1231 | C117: 98 | D117: 64.6 | E117: 86.4 | F117: 76.8 | I117: 60.6 | J117: 56.4 | K117: 45.2 | L117: 55.6 | M117: 71.8 | N117: 615.4
A118: 115 | B118: 1125 | C118: 84.6 | D118: 66.4 | E118: 66.6 | F118: 76.2 | I118: 71.4 | J118: 71.6 | K118: 35.4 | L118: 76.4 | M118: 66.6 | N118: 615.2
A119: 116 | B119: 1242 | C119: 76.4 | D119: 54.2 | E119: 92 | F119: 51.6 | I119: 72.8 | J119: 75.6 | K119: 58.2 | L119: 57.8 | M119: 75 | N119: 613.6
A120: 117 | B120: 6330 | C120: 79.4 | D120: 65 | E120: 82 | F120: 54.6 | I120: 74.8 | J120: 52.4 | K120: 68.6 | L120: 61.6 | M120: 69.2 | N120: 607.6
A121: 118 | B121: 6230 | C121: 88.2 | D121: 62 | E121: 77 | F121: 65.2 | I121: 62 | J121: 57.6 | K121: 65.6 | L121: 55.4 | M121: 69.4 | N121: 602.4
A122: 119 | B122: 5116 | C122: 69.2 | D122: 62.2 | E122: 58.8 | F122: 64.4 | I122: 58 | J122: 70.4 | K122: 83 | L122: 67.4 | M122: 66.4 | N122: 599.8
A123: 120 | B123: 2509 | C123: 76.6 | D123: 68.6 | E123: 64.4 | F123: 56.8 | I123: 65.6 | J123: 60 | K123: 69.2 | L123: 69.2 | M123: 69.2 | N123: 599.6
A124: 121 | B124: 6228 | C124: 60 | D124: 79.4 | E124: 71.2 | F124: 65 | I124: 62 | J124: 60.2 | K124: 62.2 | L124: 73.4 | M124: 61.8 | N124: 595.2
A125: 122 | B125: 2218 | C125: 62.4 | D125: 88 | E125: 66.6 | F125: 71.2 | I125: 58 | J125: 73.4 | K125: 60 | L125: 60 | M125: 53.4 | N125: 593
A126: 123 | B126: 1310 | C126: 86 | D126: 68 | E126: 60.8 | F126: 71.6 | I126: 50.6 | J126: 70.2 | K126: 55.8 | L126: 62.8 | M126: 64.2 | N126: 590
A127: 124 | B127: 6314 | C127: 77.4 | D127: 63.4 | E127: 77 | F127: 58.4 | I127: 65 | J127: 60.4 | K127: 50.8 | L127: 52.8 | M127: 81.4 | N127: 586.6
A128: 125 | B128: 2125 | C128: 62.8 | D128: 44.6 | E128: 63.4 | F128: 86.2 | I128: 61.8 | J128: 69.2 | K128: 66.8 | L128: 66.8 | M128: 64.4 | N128: 586
A129: 126 | B129: 6510 | C129: 60 | D129: 79.4 | E129: 56.8 | F129: 77.8 | I129: 56.4 | J129: 57.4 | K129: 53.2 | L129: 83.4 | M129: 61.6 | N129: 586
A130: 127 | B130: 5229 | C130: 64.4 | D130: 63.2 | E130: 49.4 | F130: 71.4 | I130: 57.6 | J130: 69.4 | K130: 68.4 | L130: 75.8 | M130: 63.2 | N130: 582.8
A131: 128 | B131: 1520 | C131: 79.6 | D131: 68.6 | E131: 56.4 | F131: 81.2 | I131: 75.4 | J131: 59 | K131: 58.8 | L131: 49.2 | M131: 54.4 | N131: 582.6
A132: 129 | B132: 2523 | C132: 73 | D132: 69.2 | E132: 60 | F132: 69.6 | I132: 57.8 | J132: 75.2 | K132: 63.8 | L132: 63.8 | M132: 47.8 | N132: =SUM(C132:M132) -> 580.2
A133: 130 | B133: 2508 | C133: 59.4 | D133: 52.8 | E133: 57.4 | F133: 44.6 | I133: 71.8 | J133: 63.6 | K133: 79.6 | L133: 79.6 | M133: 71.2 | N133: 580
A134: 131 | B134: 6512 | C134: 63.6 | D134: 78.4 | E134: 52.8 | F134: 86 | I134: 58.8 | J134: 63.8 | K134: 47.4 | L134: 66.6 | M134: 62 | N134: 579.4
A135: 132 | B135: 1315 | C135: 72.6 | D135: 79.8 | E135: 69.8 | F135: 63.4 | I135: 50.4 | J135: 75.8 | K135: 49.2 | L135: 59.2 | M135: 58.8 | N135: 579
A136: 133 | B136: 5230 | C136: 60 | D136: 62.2 | E136: 66.8 | F136: 62.2 | I136: 59 | J136: 72.8 | K136: 67.2 | L136: 58.6 | M136: 66.8 | N136: 575.6
A137: 134 | B137: 2525 | C137: 66.6 | D137: 65.8 | E137: 65 | F137: 71.2 | I137: 63.4 | J137: 60.4 | K137: 56.4 | L137: 56.4 | M137: 64 | N137: 569.2
A138: 135 | B138: 1220 | C138: 73.4 | D138: 56.4 | E138: 68.4 | F138: 64 | I138: 73 | J138: 49.2 | K138: 68.2 | L138: 69.2 | M138: 46.2 | N138: 568
A139: 136 | B139: 1523 | C139: 64.8 | D139: 73 | E139: 72.4 | F139: 71.6 | I139: 62.8 | J139: 52.8 | K139: 56 | L139: 48 | M139: 60.6 | N139: 562
A140: 137 | B140: 6231 | C140: 72.6 | D140: 65.2 | E140: 76.2 | F140: 49.8 | I140: 56 | J140: 60.4 | K140: 50.6 | L140: 63.4 | M140: 67.6 | N140: 561.8
A141: 138 | B141: 6217 | C141: 98.4 | D141: 83.6 | E141: 67 | F141: 60 | I141: 54.4 | J141: 49.2 | K141: 47.8 | L141: 63.2 | M141: 36 | N141: 559.6
A142: 139 | B142: 2101 | C142: 52.2 | D142: 67.6 | E142: 66 | F142: 73.2 | I142: 56.8 | J142: 66.6 | K142: 60.8 | L142: 60.8 | M142: 54.8 | N142: 558.8
A143: 140 | B143: 6607 | C143: 93.8 | D143: 71.6 | E143: 57 | F143: 55.2 | I143: 45.6 | J143: 59.4 | K143: 51.4 | L143: 52.4 | M143: 70 | N143: 556.4
A144: 141 | B144: 6305 | C144: 69.6 | D144: 67 | E144: 62.2 | F144: 68 | I144: 60.8 | J144: 52 | K144: 51.6 | L144: 56.8 | M144: 67.6 | N144: 555.6
A145: 142 | B145: 6216 | C145: 60 | D145: 69.4 | E145: 76.4 | F145: 62 | I145: 52.8 | J145: 37.6 | K145: 53.6 | L145: 81 | M145: 60.6 | N145: 553.4
A146: 143 | B146: 1141 | C146: 94.4 | D146: 38.4 | E146: 58 | F146: 37 | I146: 68.2 | J146: 54.2 | K146: 50 | L146: 72.4 | M146: 73.8 | N146: 546.4 | O146: 탈락
A147: 144 | B147: 1329 | C147: 65.6 | D147: 55.4 | E147: 44.6 | F147: 62.6 | I147: 77.8 | J147: 67.2 | K147: 48.2 | L147: 58 | M147: 65 | N147: 544.4
A148: 145 | B148: 6608 | C148: 77 | D148: 62 | E148: 59.4 | F148: 67.8 | I148: 69.4 | J148: 60.4 | K148: 44.6 | L148: 50.2 | M148: 52.8 | N148: 543.6
A149: 146 | B149: 6525 | C149: 67 | D149: 62.2 | E149: 62 | F149: 73.2 | I149: 47.4 | J149: 52.8 | K149: 52.8 | L149: 70.2 | M149: 55.4 | N149: 543
A150: 147 | B150: 6625 | C150: 59.4 | D150: 38.4 | E150: 56.6 | F150: 65.4 | I150: 75.2 | J150: 60.2 | K150: 62 | L150: 47.2 | M150: 70.6 | N150: 535
A151: 148 | B151: 6118 | C151: 47.4 | D151: 57.2 | E151: 60 | F151: 52.2 | I151: 60 | J151: 63.4 | K151: 60 | L151: 69.6 | M151: 61.6 | N151: 531.4
A152: 149 | B152: 2503 | C152: 70.8 | D152: 57.6 | E152: 59 | F152: 48.8 | I152: 48.2 | J152: 61 | K152: 69.4 | L152: 69.4 | M152: 46.2 | N152: 530.4
A153: 150 | B153: 2519 | C153: 74.8 | D153: 58 | E153: 50.4 | F153: 50.2 | I153: 52.8 | J153: 67.2 | K153: 51.6 | L153: 51.6 | M153: 69.6 | N153: 526.2
A154: 151 | B154: 6125 | C154: 58.8 | D154: 68.6 | E154: 50.8 | F154: 53.8 | I154: 39.4 | J154: 59.6 | K154: 60.4 | L154: 72.6 | M154: 62 | N154: 526
A155: 152 | B155: 6503 | C155: 46 | D155: 68.2 | E155: 66.6 | F155: 68.4 | I155: 43.4 | J155: 77.2 | K155: 44.4 | L155: 65.4 | M155: 45.6 | N155: 525.2
A156: 153 | B156: 2317 | C156: 69.2 | D156: 46.2 | E156: 59.4 | F156: 48 | I156: 71.2 | J156: 44.8 | K156: 62.6 | L156: 62.6 | M156: 60 | N156: 524
A157: 154 | B157: 2513 | C157: 60 | D157: 64 | E157: 52.4 | F157: 55.8 | I157: 56 | J157: 52.8 | K157: 63.2 | L157: 63.2 | M157: 56 | N157: 523.4
A158: 155 | B158: 1134 | C158: 44.2 | D158: 68 | E158: 73.2 | F158: 65 | I158: 39.2 | J158: 71.2 | K158: 38.4 | L158: 65.6 | M158: 58.2 | N158: 523 | O158: 탈락
A159: 156 | B159: 6527 | C159: 53.2 | D159: 71.6 | E159: 53.8 | F159: 59.2 | I159: 46.6 | J159: 56.8 | K159: 56.8 | L159: 67 | M159: 54.8 | N159: 519.8
A160: 157 | B160: 6618 | C160: 77.2 | D160: 51.2 | E160: 60.8 | F160: 55.6 | I160: 58.6 | J160: 45.6 | K160: 56.4 | L160: 55.2 | M160: 59 | N160: 519.6
A161: 158 | B161: 6611 | C161: 78.4 | D161: 60 | E161: 54 | F161: 73.8 | I161: 41.2 | J161: 39 | K161: 57.4 | L161: 49.2 | M161: 65.4 | N161: 518.4
A162: 159 | B162: 6515 | C162: 63.6 | D162: 64.8 | E162: 49.2 | F162: 68.4 | I162: 56.8 | J162: 34 | K162: 58.4 | L162: 59 | M162: 62 | N162: 516.2
A163: 160 | B163: 6306 | C163: 69.8 | D163: 63.6 | E163: 45 | F163: 58 | I163: 43.2 | J163: 51.2 | K163: 53.4 | L163: 61.6 | M163: 58 | N163: 503.8
A164: 161 | B164: 6322 | C164: 74.8 | D164: 47.6 | E164: 52.6 | F164: 44 | I164: 44.4 | J164: 48.6 | K164: 68.8 | L164: 49.2 | M164: 68.2 | N164: =SUM(C164:M164) -> 498.2
A165: 162 | B165: 6505 | C165: 56.8 | D165: 57.2 | E165: 51.4 | F165: 76.2 | I165: 53.2 | J165: 41.8 | K165: 50.2 | L165: 71.4 | M165: 38 | N165: 496.2
A166: 163 | B166: 1128 | C166: 53.2 | D166: 38 | E166: 63.2 | F166: 64 | I166: 54 | J166: 69.8 | K166: 39.6 | L166: 61.4 | M166: 52.8 | N166: 496 | O166: 탈락
A167: 164 | B167: 2522 | C167: 51 | D167: 57.4 | E167: 56 | F167: 75.8 | I167: 55.4 | J167: 52.4 | K167: 45.8 | L167: 45.8 | M167: 48 | N167: 487.6
A168: 165 | B168: 6603 | C168: 76 | D168: 47.8 | E168: 44.4 | F168: 47.6 | I168: 43.6 | J168: 37.8 | K168: 72.4 | L168: 49.4 | M168: 67.4 | N168: 486.4
A169: 166 | B169: 6601 | C169: 81.4 | D169: 59.8 | E169: 51.2 | F169: 41.6 | I169: 51.4 | J169: 65.8 | K169: 39.4 | L169: 53.2 | M169: 40.6 | N169: 484.4
A170: 167 | B170: 6528 | C170: 62 | D170: 73.6 | E170: 51.6 | F170: 53.6 | I170: 43.4 | J170: 28 | K170: 66.6 | L170: 55.2 | M170: 48.6 | N170: 482.6
A171: 168 | B171: 6511 | C171: 55.2 | D171: 56.2 | E171: 53.2 | F171: 61.2 | I171: 56.8 | J171: 38.4 | K171: 54.8 | L171: 67 | M171: 39.6 | N171: 482.4 | O171: 탈락
A172: 169 | B172: 6220 | C172: 43.2 | D172: 73.2 | E172: 60 | F172: 48.2 | I172: 47.4 | J172: 50.4 | K172: 48.8 | L172: 59 | M172: 52 | N172: 482.2
A173: 170 | B173: 6631 | C173: 80.4 | D173: 52.8 | E173: 52.4 | F173: 73.4 | I173: 28.4 | J173: 46.6 | K173: 47.6 | L173: 44.2 | M173: 54 | N173: 479.8
A174: 171 | B174: 6526 | C174: 50 | D174: 55.6 | E174: 58 | F174: 83 | I174: 54.4 | J174: 28.8 | K174: 54.4 | L174: 42.8 | M174: 45.6 | N174: 472.6
A175: 172 | B175: 6325 | C175: 60.4 | D175: 61.6 | E175: 54.2 | F175: 46.8 | I175: 50 | J175: 41.6 | K175: 56 | L175: 39.6 | M175: 58.4 | N175: 468.6
A176: 173 | B176: 6103 | C176: 57.2 | D176: 56.4 | E176: 45.2 | F176: 42.8 | I176: 46.2 | J176: 61 | K176: 56.8 | L176: 56.8 | M176: 45.6 | N176: 468
A177: 174 | B177: 6619 | C177: 87.2 | D177: 70.6 | E177: 49.4 | F177: 57.2 | I177: 30.6 | J177: 55.4 | K177: 75.8 | L177: 35 | M177: 0 | N177: 461.2 | O177: 탈락
A178: 175 | B178: 6111 | C178: 45.4 | D178: 69.6 | E178: 63 | F178: 59 | I178: 51.4 | J178: 23.6 | K178: 41.8 | L178: 52.4 | M178: 46.6 | N178: 452.8
A179: 176 | B179: 6632 | C179: 87 | D179: 59.4 | E179: 60.6 | F179: 60.8 | I179: 52.4 | J179: 34.4 | K179: 51.6 | L179: 38 | M179: 0 | N179: 444.2 | O179: 탈락
A180: 177 | B180: 6523 | C180: 62 | D180: 50 | E180: 42.6 | F180: 60.4 | I180: 52.8 | J180: 35.6 | K180: 50.2 | L180: 47 | M180: 39.2 | N180: 439.8 | O180: 탈락
A181: 178 | B181: 6532 | C181: 40.6 | D181: 61 | E181: 44 | F181: 57.8 | I181: 47.6 | J181: 28.6 | K181: 47.6 | L181: 49.2 | M181: 42.4 | N181: 418.8
A182: 179 | B182: 6324 | C182: 70.2 | D182: 41.2 | E182: 44.4 | F182: 53.8 | I182: 50.8 | J182: 41.6 | K182: 38.2 | L182: 44.4 | M182: 32.8 | N182: 417.4 | O182: 탈락
A183: 180 | B183: 2306 | C183: 38.6 | D183: 58 | E183: 47.6 | F183: 57.6 | I183: 54.4 | J183: 42.8 | K183: 40 | L183: 40 | M183: 24.8 | N183: 403.8 | O183: 탈락
A184: 181 | B184: 6208 | C184: 56.8 | D184: 65 | E184: 48.2 | F184: 56.4 | I184: 48 | J184: 32 | K184: 46.6 | L184: 36.8 | M184: 0 | N184: 389.8 | O184: 탈락
A185: 182 | B185: 2526 | C185: 54.4 | D185: 54.8 | E185: 51.2 | F185: 49.2 | I185: 30.8 | J185: 47.8 | K185: 32.8 | L185: 32.8 | M185: 26.8 | N185: 380.6 | O185: 탈락
A186: 183 | B186: 6313 | C186: 49.6 | D186: 52.4 | E186: 56.8 | F186: 51.8 | I186: 47.6 | J186: 42.6 | K186: 36.8 | L186: 38.6 | M186: 0 | N186: 376.2 | O186: 탈락
A187: 184 | B187: 2111 | C187: 34.4 | D187: 46.2 | E187: 46 | F187: 54.4 | I187: 41.2 | J187: 40 | K187: 39.4 | L187: 39.4 | M187: 28.2 | N187: 369.2 | O187: 탈락
A188: 185 | B188: 6316 | C188: 49.6 | D188: 56.8 | E188: 45.6 | F188: 52 | I188: 35 | J188: 43.2 | K188: 40.6 | L188: 38.8 | M188: 0 | N188: 361.6 | O188: 탈락
A189: 186 | B189: 6519 | C189: 48.8 | D189: 40.2 | E189: 38.4 | F189: 54.4 | I189: 49.6 | J189: 52.4 | K189: 34 | L189: 0 | M189: 0 | N189: 317.8 | O189: 탈락
A190: 187 | B190: 6319 | C190: 58.4 | D190: 60 | E190: 68.6 | F190: 41.6 | I190: 39 | J190: 39.2 | K190: 0 | L190: 0 | M190: 0 | N190: 306.8 | O190: 탈락
A191: 188 | B191: 6606 | C191: 68.4 | D191: 36.4 | E191: 63.8 | F191: 49 | I191: 41.2 | J191: 32.8 | K191: 0 | L191: 0 | M191: 0 | N191: 291.6 | O191: 탈락
A192: 189 | B192: 6531 | C192: 39.8 | D192: 70 | E192: 46.4 | F192: 45.6 | I192: 39.8 | J192: 0 | K192: 0 | L192: 0 | M192: 0 | N192: 241.6 | O192: 탈락
A193: 190 | B193: 6124 | C193: 39.4 | D193: 55.4 | E193: 41.6 | F193: 34.4 | I193: 0 | J193: 0 | K193: 0 | L193: 0 | M193: 0 | N193: 170.8 | O193: 탈락
A194: 191 | B194: 6226 | C194: 41.2 | D194: 36.4 | E194: 35 | F194: 46.2 | I194: 0 | J194: 0 | K194: 0 | L194: 0 | M194: 0 | N194: 158.8 | O194: 탈락
A195: 192 | B195: 6309 | C195: 58 | D195: 38 | E195: 30.8 | F195: 26.8 | I195: 0 | J195: 0 | K195: 0 | L195: 0 | M195: 0 | N195: 153.6 | O195: 탈락

Sheet 시상탈락
A1: 생활관 정리정돈/청소 상태 평가 현황(14-2학기 시상 및 탈락)
A2: NO | B2: 호 실 | C2: 9월 | F2: 10월 | J2: 11월 | N2: 총점 | O2: 시상내역
C3: 3주 | D3: 4주 | E3: 5주 | F3: 1주 | G3: 2주 | H3: 3주 | I3: 4주 | J3: 1주 | K3: 2주 | L3: 3주 | M3: 4주
A4: 1 | B4: 6624 | C4: 98.4 | D4: 99.4 | E4: 98.4 | F4: 98.4 | I4: 98.4 | J4: 98.4 | K4: 98.4 | L4: 98.4 | M4: 98.4 | N4: =SUM(C4:M4) -> 886.6 | O4: 여자 대상
A5: 2 | B5: 1319 | C5: 98.4 | D5: 98.4 | E5: 98.4 | F5: 98 | I5: 99.4 | J5: 98.4 | K5: 98.4 | L5: 98.4 | M5: 98.4 | N5: =SUM(C5:M5) -> 886.2 | O5: 남자 대상
A7: 3 | B7: 1207 | C7: 98 | D7: 98.4 | E7: 98.4 | F7: 98 | I7: 98.4 | J7: 98 | K7: 98.4 | L7: 98 | M7: 98.4 | N7: =SUM(C7:M7) -> 884 | O7: 남제 우수상
A8: 4 | B8: 1206 | C8: 98.4 | D8: 98.4 | E8: 98.4 | F8: 98 | I8: 98.4 | J8: 98 | K8: 98 | L8: 98.4 | M8: 98 | N8: =SUM(C8:M8) -> 884 | O8: 남제 장려상
A9: 5 | B9: 1115 | C9: 96.8 | D9: 98.4 | E9: 98.4 | F9: 98.4 | I9: 98.4 | J9: 98.4 | K9: 97 | L9: 98.4 | M9: 98.4 | N9: =SUM(C9:M9) -> 882.6 | O9: 남제 장려상
A11: 6 | B11: 2114 | C11: 82 | D11: 98 | E11: 90.4 | F11: 95.4 | I11: 95.4 | J11: 99.4 | K11: 94 | L11: 94 | M11: 90.8 | N11: =SUM(C11:M11) -> 839.4 | O11: 용지 우수상
A12: 7 | B12: 2516 | C12: 89.8 | D12: 98.4 | E12: 88.8 | F12: 95.4 | I12: 84.8 | J12: 97 | K12: 93.8 | L12: 93.8 | M12: 94 | N12: =SUM(C12:M12) -> 835.8 | O12: 용지 장려상
A13: 8 | B13: 2514 | C13: 88.8 | D13: 98 | E13: 90.4 | F13: 91.8 | I13: 87.2 | J13: 95.4 | K13: 90.4 | L13: 90.4 | M13: 94 | N13: =SUM(C13:M13) -> 826.4 | O13: 용지 장려상
A15: 9 | B15: 5317 | C15: 94 | D15: 95.4 | E15: 99.4 | F15: 96.4 | I15: 97 | J15: 95.4 | K15: 98.4 | L15: 96.8 | M15: 95.4 | N15: =SUM(C15:M15) -> 868.2 | O15: 화홍 우수상
A16: 10 | B16: 5124 | C16: 92.8 | D16: 96.4 | E16: 96.8 | F16: 95.4 | I16: 96.8 | J16: 96.8 | K16: 96.4 | L16: 96.8 | M16: 96.8 | N16: =SUM(C16:M16) -> 865 | O16: 화홍 장려상
A17: 11 | B17: 5329 | C17: 77.4 | D17: 98.4 | E17: 89 | F17: 98 | I17: 86.8 | J17: 85.8 | K17: 82 | L17: 85 | M17: 80.6 | N17: =SUM(C17:M17) -> 783 | O17: 화홍 장려상
A19: 12 | B19: 6506 | C19: 96.4 | D19: 98.4 | E19: 98.4 | F19: 98.4 | I19: 98.4 | J19: 98.4 | K19: 97 | L19: 99.4 | M19: 97 | N19: =SUM(C19:M19) -> 881.8 | O19: 광교 우수상
A20: 13 | B20: 6613 | C20: 96.8 | D20: 96.4 | E20: 93.8 | F20: 98.4 | I20: 95 | J20: 98.4 | K20: 93.8 | L20: 98.4 | M20: 98.4 | N20: =SUM(C20:M20) -> 869.4 | O20: 광교 장려상
A21: 14 | B21: 6627 | C21: 96.8 | D21: 91.6 | E21: 91.2 | F21: 99.4 | I21: 98.4 | J21: 90.6 | K21: 98.4 | L21: 95.2 | M21: 98.4 | N21: =SUM(C21:M21) -> 860 | O21: 광교 장려상
A23: 1 | B23: 1128 | C23: 53.2 | D23: 38 | E23: 63.2 | F23: 64 | I23: 54 | J23: 69.8 | K23: 39.6 | L23: 61.4 | M23: 52.8 | N23: =SUM(C23:M23) -> 496 | O23: 탈락
A24: 2 | B24: 1134 | C24: 44.2 | D24: 68 | E24: 73.2 | F24: 65 | I24: 39.2 | J24: 71.2 | K24: 38.4 | L24: 65.6 | M24: 58.2 | N24: 523 | O24: 탈락
A25: 3 | B25: 1141 | C25: 94.4 | D25: 38.4 | E25: 58 | F25: 37 | I25: 68.2 | J25: 54.2 | K25: 50 | L25: 72.4 | M25: 73.8 | N25: 546.4 | O25: 탈락
A26: 4 | B26: 2111 | C26: 34.4 | D26: 46.2 | E26: 46 | F26: 54.4 | I26: 41.2 | J26: 40 | K26: 39.4 | L26: 39.4 | M26: 28.2 | N26: 369.2 | O26: 탈락
A27: 5 | B27: 2306 | C27: 38.6 | D27: 58 | E27: 47.6 | F27: 57.6 | I27: 54.4 | J27: 42.8 | K27: 40 | L27: 40 | M27: 24.8 | N27: 403.8 | O27: 탈락
A28: 6 | B28: 2526 | C28: 54.4 | D28: 54.8 | E28: 51.2 | F28: 49.2 | I28: 30.8 | J28: 47.8 | K28: 32.8 | L28: 32.8 | M28: 26.8 | N28: 380.6 | O28: 탈락
A29: 7 | B29: 6124 | C29: 39.4 | D29: 55.4 | E29: 41.6 | F29: 34.4 | I29: 0 | J29: 0 | K29: 0 | L29: 0 | M29: 0 | N29: 170.8 | O29: 탈락
A30: 8 | B30: 6208 | C30: 56.8 | D30: 65 | E30: 48.2 | F30: 56.4 | I30: 48 | J30: 32 | K30: 46.6 | L30: 36.8 | M30: 0 | N30: 389.8 | O30: 탈락
A31: 9 | B31: 6226 | C31: 41.2 | D31: 36.4 | E31: 35 | F31: 46.2 | I31: 0 | J31: 0 | K31: 0 | L31: 0 | M31: 0 | N31: 158.8 | O31: 탈락
A32: 10 | B32: 6309 | C32: 58 | D32: 38 | E32: 30.8 | F32: 26.8 | I32: 0 | J32: 0 | K32: 0 | L32: 0 | M32: 0 | N32: 153.6 | O32: 탈락
A33: 11 | B33: 6313 | C33: 49.6 | D33: 52.4 | E33: 56.8 | F33: 51.8 | I33: 47.6 | J33: 42.6 | K33: 36.8 | L33: 38.6 | M33: 0 | N33: 376.2 | O33: 탈락
A34: 12 | B34: 6316 | C34: 49.6 | D34: 56.8 | E34: 45.6 | F34: 52 | I34: 35 | J34: 43.2 | K34: 40.6 | L34: 38.8 | M34: 0 | N34: 361.6 | O34: 탈락
A35: 13 | B35: 6319 | C35: 58.4 | D35: 60 | E35: 68.6 | F35: 41.6 | I35: 39 | J35: 39.2 | K35: 0 | L35: 0 | M35: 0 | N35: 306.8 | O35: 탈락
A36: 14 | B36: 6324 | C36: 70.2 | D36: 41.2 | E36: 44.4 | F36: 53.8 | I36: 50.8 | J36: 41.6 | K36: 38.2 | L36: 44.4 | M36: 32.8 | N36: 417.4 | O36: 탈락
A37: 15 | B37: 6511 | C37: 55.2 | D37: 56.2 | E37: 53.2 | F37: 61.2 | I37: 56.8 | J37: 38.4 | K37: 54.8 | L37: 67 | M37: 39.6 | N37: 482.4 | O37: 탈락
A38: 16 | B38: 6519 | C38: 48.8 | D38: 40.2 | E38: 38.4 | F38: 54.4 | I38: 49.6 | J38: 52.4 | K38: 34 | L38: 0 | M38: 0 | N38: 317.8 | O38: 탈락
A39: 17 | B39: 6523 | C39: 62 | D39: 50 | E39: 42.6 | F39: 60.4 | I39: 52.8 | J39: 35.6 | K39: 50.2 | L39: 47 | M39: 39.2 | N39: 439.8 | O39: 탈락
A40: 18 | B40: 6531 | C40: 39.8 | D40: 70 | E40: 46.4 | F40: 45.6 | I40: 39.8 | J40: 0 | K40: 0 | L40: 0 | M40: 0 | N40: 241.6 | O40: 탈락
A41: 19 | B41: 6606 | C41: 68.4 | D41: 36.4 | E41: 63.8 | F41: 49 | I41: 41.2 | J41: 32.8 | K41: 0 | L41: 0 | M41: 0 | N41: 291.6 | O41: 탈락
A42: 20 | B42: 6619 | C42: 87.2 | D42: 70.6 | E42: 49.4 | F42: 57.2 | I42: 30.6 | J42: 55.4 | K42: 75.8 | L42: 35 | M42: 0 | N42: 461.2 | O42: 탈락
A43: 21 | B43: 6632 | C43: 87 | D43: 59.4 | E43: 60.6 | F43: 60.8 | I43: 52.4 | J43: 34.4 | K43: 51.6 | L43: 38 | M43: 0 | N43: 444.2 | O43: 탈락
